{"text_format":"1","workbook":"xlsx","n_sheets":3,"sheets":["NUMERAÇÃO","GESTÃO DE CONTRATOS","2018"],"not_rendered":{"charts":0,"images":0,"macros":0,"external_links":1,"defined_names":26,"comments":1,"pivot_tables":0},"unopened":[],"bounds":{"document_bytes":16777216,"sheet_cells":100000,"rows_first":2000,"rows_last":500,"rows_between":2000,"halvings":0,"cell_chars":16384,"cell_head_chars":4096},"cells_cut":0,"cells_raw":0,"read":"whole","date_system":"1900"}

{"sheet":"NUMERAÇÃO","index":0,"n_rows":72,"n_cols":14,"rows_kept":72,"cut":false,"hidden":true,"merged":[[0,0,0,1],[0,3,0,4],[0,6,0,7],[0,9,0,10],[0,12,0,13]]}
["PROC. ADM",null,null,"ATA",null,null,"CONTRATOS",null,null,"OS",null,null,"OF"]
["NUMERO","LICITAÇÃO",null,"NUMERO","LICITAÇÃO",null,"NUMERO","LICITAÇÃO",null,"NUMERO","LICITAÇÃO",null,"NUMERO","LICITAÇÃO"]
["001/15",{"$f":"IFERROR(CONCATENATE(VLOOKUP(A3,'2018'!$A$1:$U$99958,3,),TEXT(VLOOKUP(A3,'2018'!$A$1:$U$99958,2,),\"000\"),\"/\",YEAR(VLOOKUP(A3,'2018'!$A$1:$U$99958,4,))),\"\")","v":""},null,"001/15","PP019/14",null,"001/15","TP06/2014",null,"001/15","CV054/2014",null,"001/15","CV002"]
["002/15",{"$f":"IFERROR(CONCATENATE(VLOOKUP(A4,'2018'!$A$1:$U$99958,3,),TEXT(VLOOKUP(A4,'2018'!$A$1:$U$99958,2,),\"000\"),\"/\",YEAR(VLOOKUP(A4,'2018'!$A$1:$U$99958,4,))),\"\")","v":""},null,"002/15","PP019/14",null,"002/15","PP18/2014",null,"002/15","CV055/2014",null,"002/15"]
["003/15",{"$f":"IFERROR(CONCATENATE(VLOOKUP(A5,'2018'!$A$1:$U$99958,3,),TEXT(VLOOKUP(A5,'2018'!$A$1:$U$99958,2,),\"000\"),\"/\",YEAR(VLOOKUP(A5,'2018'!$A$1:$U$99958,4,))),\"\")","v":""},null,"003/15","PP019/14",null,"003/15","PP001",null,"003/15","CV056/2014",null,"003/15"]
["004/15",{"$f":"IFERROR(CONCATENATE(VLOOKUP(A6,'2018'!$A$1:$U$99958,3,),TEXT(VLOOKUP(A6,'2018'!$A$1:$U$99958,2,),\"000\"),\"/\",YEAR(VLOOKUP(A6,'2018'!$A$1:$U$99958,4,))),\"\")","v":""},null,"004/15","PP020/14",null,"004/15","PP002",null,"004/15","CV057/2014",null,"004/15"]
["005/15",{"$f":"IFERROR(CONCATENATE(VLOOKUP(A7,'2018'!$A$1:$U$99958,3,),TEXT(VLOOKUP(A7,'2018'!$A$1:$U$99958,2,),\"000\"),\"/\",YEAR(VLOOKUP(A7,'2018'!$A$1:$U$99958,4,))),\"\")","v":""},null,"005/15","PP020/14",null,"005/15","TP05/2014",null,"005/15","CV001",null,"005/15"]
["006/15",{"$f":"IFERROR(CONCATENATE(VLOOKUP(A8,'2018'!$A$1:$U$99958,3,),TEXT(VLOOKUP(A8,'2018'!$A$1:$U$99958,2,),\"000\"),\"/\",YEAR(VLOOKUP(A8,'2018'!$A$1:$U$99958,4,))),\"\")","v":""},null,"006/15","PP021/14",null,"006/15","PP003",null,"006/15","CV003",null,"006/15"]
["007/15",{"$f":"IFERROR(CONCATENATE(VLOOKUP(A9,'2018'!$A$1:$U$99958,3,),TEXT(VLOOKUP(A9,'2018'!$A$1:$U$99958,2,),\"000\"),\"/\",YEAR(VLOOKUP(A9,'2018'!$A$1:$U$99958,4,))),\"\")","v":""},null,"007/15","PP021/14",null,"007/15","IN001",null,"007/15","CV004",null,"007/15"]
["008/15",{"$f":"IFERROR(CONCATENATE(VLOOKUP(A10,'2018'!$A$1:$U$99958,3,),TEXT(VLOOKUP(A10,'2018'!$A$1:$U$99958,2,),\"000\"),\"/\",YEAR(VLOOKUP(A10,'2018'!$A$1:$U$99958,4,))),\"\")","v":""},null,"008/15","PP001/15",null,"008/15","PP004",null,"008/15","CV005",null,"008/15"]
["009/15",{"$f":"IFERROR(CONCATENATE(VLOOKUP(A11,'2018'!$A$1:$U$99958,3,),TEXT(VLOOKUP(A11,'2018'!$A$1:$U$99958,2,),\"000\"),\"/\",YEAR(VLOOKUP(A11,'2018'!$A$1:$U$99958,4,))),\"\")","v":""},null,"009/15","PP002/15",null,"009/15",null,null,"009/15","CV006",null,"009/15"]
["010/15",{"$f":"IFERROR(CONCATENATE(VLOOKUP(A12,'2018'!$A$1:$U$99958,3,),TEXT(VLOOKUP(A12,'2018'!$A$1:$U$99958,2,),\"000\"),\"/\",YEAR(VLOOKUP(A12,'2018'!$A$1:$U$99958,4,))),\"\")","v":""},null,"010/15",null,null,"010/15",null,null,"010/15",null,null,"010/15"]
["011/15",{"$f":"IFERROR(CONCATENATE(VLOOKUP(A13,'2018'!$A$1:$U$99958,3,),TEXT(VLOOKUP(A13,'2018'!$A$1:$U$99958,2,),\"000\"),\"/\",YEAR(VLOOKUP(A13,'2018'!$A$1:$U$99958,4,))),\"\")","v":""},null,"011/15",null,null,"011/15",null,null,"011/15",null,null,"011/15"]
["012/15",{"$f":"IFERROR(CONCATENATE(VLOOKUP(A14,'2018'!$A$1:$U$99958,3,),TEXT(VLOOKUP(A14,'2018'!$A$1:$U$99958,2,),\"000\"),\"/\",YEAR(VLOOKUP(A14,'2018'!$A$1:$U$99958,4,))),\"\")","v":""},null,"012/15",null,null,"012/15",null,null,"012/15",null,null,"012/15"]
["013/15",{"$f":"IFERROR(CONCATENATE(VLOOKUP(A15,'2018'!$A$1:$U$99958,3,),TEXT(VLOOKUP(A15,'2018'!$A$1:$U$99958,2,),\"000\"),\"/\",YEAR(VLOOKUP(A15,'2018'!$A$1:$U$99958,4,))),\"\")","v":""},null,"013/15",null,null,"013/15",null,null,"013/15",null,null,"013/15"]
["014/15",{"$f":"IFERROR(CONCATENATE(VLOOKUP(A16,'2018'!$A$1:$U$99958,3,),TEXT(VLOOKUP(A16,'2018'!$A$1:$U$99958,2,),\"000\"),\"/\",YEAR(VLOOKUP(A16,'2018'!$A$1:$U$99958,4,))),\"\")","v":""},null,"014/15",null,null,"014/15",null,null,"014/15",null,null,"014/15"]
["015/15",{"$f":"IFERROR(CONCATENATE(VLOOKUP(A17,'2018'!$A$1:$U$99958,3,),TEXT(VLOOKUP(A17,'2018'!$A$1:$U$99958,2,),\"000\"),\"/\",YEAR(VLOOKUP(A17,'2018'!$A$1:$U$99958,4,))),\"\")","v":""},null,"015/15",null,null,"015/15",null,null,"015/15",null,null,"015/15"]
["016/15",{"$f":"IFERROR(CONCATENATE(VLOOKUP(A18,'2018'!$A$1:$U$99958,3,),TEXT(VLOOKUP(A18,'2018'!$A$1:$U$99958,2,),\"000\"),\"/\",YEAR(VLOOKUP(A18,'2018'!$A$1:$U$99958,4,))),\"\")","v":""},null,"016/15",null,null,"016/15",null,null,"016/15",null,null,"016/15"]
["017/15",{"$f":"IFERROR(CONCATENATE(VLOOKUP(A19,'2018'!$A$1:$U$99958,3,),TEXT(VLOOKUP(A19,'2018'!$A$1:$U$99958,2,),\"000\"),\"/\",YEAR(VLOOKUP(A19,'2018'!$A$1:$U$99958,4,))),\"\")","v":""},null,"017/15",null,null,"017/15",null,null,"017/15",null,null,"017/15"]
["018/15",{"$f":"IFERROR(CONCATENATE(VLOOKUP(A20,'2018'!$A$1:$U$99958,3,),TEXT(VLOOKUP(A20,'2018'!$A$1:$U$99958,2,),\"000\"),\"/\",YEAR(VLOOKUP(A20,'2018'!$A$1:$U$99958,4,))),\"\")","v":""},null,"018/15",null,null,"018/15",null,null,"018/15",null,null,"018/15"]
["019/15",{"$f":"IFERROR(CONCATENATE(VLOOKUP(A21,'2018'!$A$1:$U$99958,3,),TEXT(VLOOKUP(A21,'2018'!$A$1:$U$99958,2,),\"000\"),\"/\",YEAR(VLOOKUP(A21,'2018'!$A$1:$U$99958,4,))),\"\")","v":""},null,"019/15",null,null,"019/15",null,null,"019/15",null,null,"019/15"]
["020/15",{"$f":"IFERROR(CONCATENATE(VLOOKUP(A22,'2018'!$A$1:$U$99958,3,),TEXT(VLOOKUP(A22,'2018'!$A$1:$U$99958,2,),\"000\"),\"/\",YEAR(VLOOKUP(A22,'2018'!$A$1:$U$99958,4,))),\"\")","v":""},null,"020/15",null,null,"020/15",null,null,"020/15",null,null,"020/15"]
["021/15",{"$f":"IFERROR(CONCATENATE(VLOOKUP(A23,'2018'!$A$1:$U$99958,3,),TEXT(VLOOKUP(A23,'2018'!$A$1:$U$99958,2,),\"000\"),\"/\",YEAR(VLOOKUP(A23,'2018'!$A$1:$U$99958,4,))),\"\")","v":""},null,"021/15",null,null,"021/15",null,null,"021/15",null,null,"021/15"]
["022/15",{"$f":"IFERROR(CONCATENATE(VLOOKUP(A24,'2018'!$A$1:$U$99958,3,),TEXT(VLOOKUP(A24,'2018'!$A$1:$U$99958,2,),\"000\"),\"/\",YEAR(VLOOKUP(A24,'2018'!$A$1:$U$99958,4,))),\"\")","v":""},null,"022/15",null,null,"022/15",null,null,"022/15",null,null,"022/15"]
["023/15",{"$f":"IFERROR(CONCATENATE(VLOOKUP(A25,'2018'!$A$1:$U$99958,3,),TEXT(VLOOKUP(A25,'2018'!$A$1:$U$99958,2,),\"000\"),\"/\",YEAR(VLOOKUP(A25,'2018'!$A$1:$U$99958,4,))),\"\")","v":""},null,"023/15",null,null,"023/15",null,null,"023/15",null,null,"023/15"]
["024/15",{"$f":"IFERROR(CONCATENATE(VLOOKUP(A26,'2018'!$A$1:$U$99958,3,),TEXT(VLOOKUP(A26,'2018'!$A$1:$U$99958,2,),\"000\"),\"/\",YEAR(VLOOKUP(A26,'2018'!$A$1:$U$99958,4,))),\"\")","v":""},null,"024/15",null,null,"024/15",null,null,"024/15",null,null,"024/15"]
["025/15",{"$f":"IFERROR(CONCATENATE(VLOOKUP(A27,'2018'!$A$1:$U$99958,3,),TEXT(VLOOKUP(A27,'2018'!$A$1:$U$99958,2,),\"000\"),\"/\",YEAR(VLOOKUP(A27,'2018'!$A$1:$U$99958,4,))),\"\")","v":""},null,"025/15",null,null,"025/15",null,null,"025/15",null,null,"025/15"]
["026/15",{"$f":"IFERROR(CONCATENATE(VLOOKUP(A28,'2018'!$A$1:$U$99958,3,),TEXT(VLOOKUP(A28,'2018'!$A$1:$U$99958,2,),\"000\"),\"/\",YEAR(VLOOKUP(A28,'2018'!$A$1:$U$99958,4,))),\"\")","v":""},null,"026/15",null,null,"026/15",null,null,"026/15",null,null,"026/15"]
["027/15",{"$f":"IFERROR(CONCATENATE(VLOOKUP(A29,'2018'!$A$1:$U$99958,3,),TEXT(VLOOKUP(A29,'2018'!$A$1:$U$99958,2,),\"000\"),\"/\",YEAR(VLOOKUP(A29,'2018'!$A$1:$U$99958,4,))),\"\")","v":""},null,"027/15",null,null,"027/15",null,null,"027/15",null,null,"027/15"]
["028/15",{"$f":"IFERROR(CONCATENATE(VLOOKUP(A30,'2018'!$A$1:$U$99958,3,),TEXT(VLOOKUP(A30,'2018'!$A$1:$U$99958,2,),\"000\"),\"/\",YEAR(VLOOKUP(A30,'2018'!$A$1:$U$99958,4,))),\"\")","v":""},null,"028/15",null,null,"028/15",null,null,"028/15",null,null,"028/15"]
["029/15",{"$f":"IFERROR(CONCATENATE(VLOOKUP(A31,'2018'!$A$1:$U$99958,3,),TEXT(VLOOKUP(A31,'2018'!$A$1:$U$99958,2,),\"000\"),\"/\",YEAR(VLOOKUP(A31,'2018'!$A$1:$U$99958,4,))),\"\")","v":""},null,"029/15",null,null,"029/15",null,null,"029/15",null,null,"029/15"]
["030/15",{"$f":"IFERROR(CONCATENATE(VLOOKUP(A32,'2018'!$A$1:$U$99958,3,),TEXT(VLOOKUP(A32,'2018'!$A$1:$U$99958,2,),\"000\"),\"/\",YEAR(VLOOKUP(A32,'2018'!$A$1:$U$99958,4,))),\"\")","v":""},null,"030/15",null,null,"030/15",null,null,"030/15",null,null,"030/15"]
["031/15",{"$f":"IFERROR(CONCATENATE(VLOOKUP(A33,'2018'!$A$1:$U$99958,3,),TEXT(VLOOKUP(A33,'2018'!$A$1:$U$99958,2,),\"000\"),\"/\",YEAR(VLOOKUP(A33,'2018'!$A$1:$U$99958,4,))),\"\")","v":""},null,"031/15",null,null,"031/15",null,null,"031/15",null,null,"031/15"]
["032/15",{"$f":"IFERROR(CONCATENATE(VLOOKUP(A34,'2018'!$A$1:$U$99958,3,),TEXT(VLOOKUP(A34,'2018'!$A$1:$U$99958,2,),\"000\"),\"/\",YEAR(VLOOKUP(A34,'2018'!$A$1:$U$99958,4,))),\"\")","v":""},null,"032/15",null,null,"032/15",null,null,"032/15",null,null,"032/15"]
["033/15",{"$f":"IFERROR(CONCATENATE(VLOOKUP(A35,'2018'!$A$1:$U$99958,3,),TEXT(VLOOKUP(A35,'2018'!$A$1:$U$99958,2,),\"000\"),\"/\",YEAR(VLOOKUP(A35,'2018'!$A$1:$U$99958,4,))),\"\")","v":""},null,"033/15",null,null,"033/15",null,null,"033/15",null,null,"033/15"]
["034/15",{"$f":"IFERROR(CONCATENATE(VLOOKUP(A36,'2018'!$A$1:$U$99958,3,),TEXT(VLOOKUP(A36,'2018'!$A$1:$U$99958,2,),\"000\"),\"/\",YEAR(VLOOKUP(A36,'2018'!$A$1:$U$99958,4,))),\"\")","v":""},null,"034/15",null,null,"034/15",null,null,"034/15",null,null,"034/15"]
["035/15",{"$f":"IFERROR(CONCATENATE(VLOOKUP(A37,'2018'!$A$1:$U$99958,3,),TEXT(VLOOKUP(A37,'2018'!$A$1:$U$99958,2,),\"000\"),\"/\",YEAR(VLOOKUP(A37,'2018'!$A$1:$U$99958,4,))),\"\")","v":""},null,"035/15",null,null,"035/15",null,null,"035/15",null,null,"035/15"]
["036/15",{"$f":"IFERROR(CONCATENATE(VLOOKUP(A38,'2018'!$A$1:$U$99958,3,),TEXT(VLOOKUP(A38,'2018'!$A$1:$U$99958,2,),\"000\"),\"/\",YEAR(VLOOKUP(A38,'2018'!$A$1:$U$99958,4,))),\"\")","v":""},null,"036/15",null,null,"036/15",null,null,"036/15",null,null,"036/15"]
["037/15",{"$f":"IFERROR(CONCATENATE(VLOOKUP(A39,'2018'!$A$1:$U$99958,3,),TEXT(VLOOKUP(A39,'2018'!$A$1:$U$99958,2,),\"000\"),\"/\",YEAR(VLOOKUP(A39,'2018'!$A$1:$U$99958,4,))),\"\")","v":""},null,"037/15",null,null,"037/15",null,null,"037/15",null,null,"037/15"]
["038/15",{"$f":"IFERROR(CONCATENATE(VLOOKUP(A40,'2018'!$A$1:$U$99958,3,),TEXT(VLOOKUP(A40,'2018'!$A$1:$U$99958,2,),\"000\"),\"/\",YEAR(VLOOKUP(A40,'2018'!$A$1:$U$99958,4,))),\"\")","v":""},null,"038/15",null,null,"038/15",null,null,"038/15",null,null,"038/15"]
["039/15",{"$f":"IFERROR(CONCATENATE(VLOOKUP(A41,'2018'!$A$1:$U$99958,3,),TEXT(VLOOKUP(A41,'2018'!$A$1:$U$99958,2,),\"000\"),\"/\",YEAR(VLOOKUP(A41,'2018'!$A$1:$U$99958,4,))),\"\")","v":""},null,"039/15",null,null,"039/15",null,null,"039/15",null,null,"039/15"]
["040/15",{"$f":"IFERROR(CONCATENATE(VLOOKUP(A42,'2018'!$A$1:$U$99958,3,),TEXT(VLOOKUP(A42,'2018'!$A$1:$U$99958,2,),\"000\"),\"/\",YEAR(VLOOKUP(A42,'2018'!$A$1:$U$99958,4,))),\"\")","v":""},null,"040/15",null,null,"040/15",null,null,"040/15",null,null,"040/15"]
["041/15",{"$f":"IFERROR(CONCATENATE(VLOOKUP(A43,'2018'!$A$1:$U$99958,3,),TEXT(VLOOKUP(A43,'2018'!$A$1:$U$99958,2,),\"000\"),\"/\",YEAR(VLOOKUP(A43,'2018'!$A$1:$U$99958,4,))),\"\")","v":""},null,"041/15",null,null,"041/15",null,null,"041/15",null,null,"041/15"]
["042/15",{"$f":"IFERROR(CONCATENATE(VLOOKUP(A44,'2018'!$A$1:$U$99958,3,),TEXT(VLOOKUP(A44,'2018'!$A$1:$U$99958,2,),\"000\"),\"/\",YEAR(VLOOKUP(A44,'2018'!$A$1:$U$99958,4,))),\"\")","v":""},null,"042/15",null,null,"042/15",null,null,"042/15",null,null,"042/15"]
["043/15",{"$f":"IFERROR(CONCATENATE(VLOOKUP(A45,'2018'!$A$1:$U$99958,3,),TEXT(VLOOKUP(A45,'2018'!$A$1:$U$99958,2,),\"000\"),\"/\",YEAR(VLOOKUP(A45,'2018'!$A$1:$U$99958,4,))),\"\")","v":""},null,"043/15",null,null,"043/15",null,null,"043/15",null,null,"043/15"]
["044/15",{"$f":"IFERROR(CONCATENATE(VLOOKUP(A46,'2018'!$A$1:$U$99958,3,),TEXT(VLOOKUP(A46,'2018'!$A$1:$U$99958,2,),\"000\"),\"/\",YEAR(VLOOKUP(A46,'2018'!$A$1:$U$99958,4,))),\"\")","v":""},null,"044/15",null,null,"044/15",null,null,"044/15",null,null,"044/15"]
["045/15",{"$f":"IFERROR(CONCATENATE(VLOOKUP(A47,'2018'!$A$1:$U$99958,3,),TEXT(VLOOKUP(A47,'2018'!$A$1:$U$99958,2,),\"000\"),\"/\",YEAR(VLOOKUP(A47,'2018'!$A$1:$U$99958,4,))),\"\")","v":""},null,"045/15",null,null,"045/15",null,null,"045/15",null,null,"045/15"]
["046/15",{"$f":"IFERROR(CONCATENATE(VLOOKUP(A48,'2018'!$A$1:$U$99958,3,),TEXT(VLOOKUP(A48,'2018'!$A$1:$U$99958,2,),\"000\"),\"/\",YEAR(VLOOKUP(A48,'2018'!$A$1:$U$99958,4,))),\"\")","v":""},null,"046/15",null,null,"046/15",null,null,"046/15",null,null,"046/15"]
["047/15",{"$f":"IFERROR(CONCATENATE(VLOOKUP(A49,'2018'!$A$1:$U$99958,3,),TEXT(VLOOKUP(A49,'2018'!$A$1:$U$99958,2,),\"000\"),\"/\",YEAR(VLOOKUP(A49,'2018'!$A$1:$U$99958,4,))),\"\")","v":""},null,"047/15",null,null,"047/15",null,null,"047/15",null,null,"047/15"]
["048/15",{"$f":"IFERROR(CONCATENATE(VLOOKUP(A50,'2018'!$A$1:$U$99958,3,),TEXT(VLOOKUP(A50,'2018'!$A$1:$U$99958,2,),\"000\"),\"/\",YEAR(VLOOKUP(A50,'2018'!$A$1:$U$99958,4,))),\"\")","v":""},null,"048/15",null,null,"048/15",null,null,"048/15",null,null,"048/15"]
["049/15",{"$f":"IFERROR(CONCATENATE(VLOOKUP(A51,'2018'!$A$1:$U$99958,3,),TEXT(VLOOKUP(A51,'2018'!$A$1:$U$99958,2,),\"000\"),\"/\",YEAR(VLOOKUP(A51,'2018'!$A$1:$U$99958,4,))),\"\")","v":""},null,"049/15",null,null,"049/15",null,null,"049/15",null,null,"049/15"]
["050/15",{"$f":"IFERROR(CONCATENATE(VLOOKUP(A52,'2018'!$A$1:$U$99958,3,),TEXT(VLOOKUP(A52,'2018'!$A$1:$U$99958,2,),\"000\"),\"/\",YEAR(VLOOKUP(A52,'2018'!$A$1:$U$99958,4,))),\"\")","v":""},null,"050/15",null,null,"050/15",null,null,"050/15",null,null,"050/15"]
["051/15",{"$f":"IFERROR(CONCATENATE(VLOOKUP(A53,'2018'!$A$1:$U$99958,3,),TEXT(VLOOKUP(A53,'2018'!$A$1:$U$99958,2,),\"000\"),\"/\",YEAR(VLOOKUP(A53,'2018'!$A$1:$U$99958,4,))),\"\")","v":""},null,"051/15",null,null,"051/15",null,null,"051/15",null,null,"051/15"]
["052/15",{"$f":"IFERROR(CONCATENATE(VLOOKUP(A54,'2018'!$A$1:$U$99958,3,),TEXT(VLOOKUP(A54,'2018'!$A$1:$U$99958,2,),\"000\"),\"/\",YEAR(VLOOKUP(A54,'2018'!$A$1:$U$99958,4,))),\"\")","v":""},null,"052/15",null,null,"052/15",null,null,"052/15",null,null,"052/15"]
["053/15",{"$f":"IFERROR(CONCATENATE(VLOOKUP(A55,'2018'!$A$1:$U$99958,3,),TEXT(VLOOKUP(A55,'2018'!$A$1:$U$99958,2,),\"000\"),\"/\",YEAR(VLOOKUP(A55,'2018'!$A$1:$U$99958,4,))),\"\")","v":""},null,"053/15",null,null,"053/15",null,null,"053/15",null,null,"053/15"]
["054/15",{"$f":"IFERROR(CONCATENATE(VLOOKUP(A56,'2018'!$A$1:$U$99958,3,),TEXT(VLOOKUP(A56,'2018'!$A$1:$U$99958,2,),\"000\"),\"/\",YEAR(VLOOKUP(A56,'2018'!$A$1:$U$99958,4,))),\"\")","v":""},null,"054/15",null,null,"054/15",null,null,"054/15",null,null,"054/15"]
["055/15",{"$f":"IFERROR(CONCATENATE(VLOOKUP(A57,'2018'!$A$1:$U$99958,3,),TEXT(VLOOKUP(A57,'2018'!$A$1:$U$99958,2,),\"000\"),\"/\",YEAR(VLOOKUP(A57,'2018'!$A$1:$U$99958,4,))),\"\")","v":""},null,"055/15",null,null,"055/15",null,null,"055/15",null,null,"055/15"]
["056/15",{"$f":"IFERROR(CONCATENATE(VLOOKUP(A58,'2018'!$A$1:$U$99958,3,),TEXT(VLOOKUP(A58,'2018'!$A$1:$U$99958,2,),\"000\"),\"/\",YEAR(VLOOKUP(A58,'2018'!$A$1:$U$99958,4,))),\"\")","v":""},null,"056/15",null,null,"056/15",null,null,"056/15",null,null,"056/15"]
["057/15",{"$f":"IFERROR(CONCATENATE(VLOOKUP(A59,'2018'!$A$1:$U$99958,3,),TEXT(VLOOKUP(A59,'2018'!$A$1:$U$99958,2,),\"000\"),\"/\",YEAR(VLOOKUP(A59,'2018'!$A$1:$U$99958,4,))),\"\")","v":""},null,"057/15",null,null,"057/15",null,null,"057/15",null,null,"057/15"]
["058/15",{"$f":"IFERROR(CONCATENATE(VLOOKUP(A60,'2018'!$A$1:$U$99958,3,),TEXT(VLOOKUP(A60,'2018'!$A$1:$U$99958,2,),\"000\"),\"/\",YEAR(VLOOKUP(A60,'2018'!$A$1:$U$99958,4,))),\"\")","v":""},null,"058/15",null,null,"058/15",null,null,"058/15",null,null,"058/15"]
["059/15",{"$f":"IFERROR(CONCATENATE(VLOOKUP(A61,'2018'!$A$1:$U$99958,3,),TEXT(VLOOKUP(A61,'2018'!$A$1:$U$99958,2,),\"000\"),\"/\",YEAR(VLOOKUP(A61,'2018'!$A$1:$U$99958,4,))),\"\")","v":""},null,"059/15",null,null,"059/15",null,null,"059/15",null,null,"059/15"]
["060/15",{"$f":"IFERROR(CONCATENATE(VLOOKUP(A62,'2018'!$A$1:$U$99958,3,),TEXT(VLOOKUP(A62,'2018'!$A$1:$U$99958,2,),\"000\"),\"/\",YEAR(VLOOKUP(A62,'2018'!$A$1:$U$99958,4,))),\"\")","v":""},null,"060/15",null,null,"060/15",null,null,"060/15",null,null,"060/15"]
["061/15",{"$f":"IFERROR(CONCATENATE(VLOOKUP(A63,'2018'!$A$1:$U$99958,3,),TEXT(VLOOKUP(A63,'2018'!$A$1:$U$99958,2,),\"000\"),\"/\",YEAR(VLOOKUP(A63,'2018'!$A$1:$U$99958,4,))),\"\")","v":""},null,"061/15",null,null,"061/15",null,null,"061/15",null,null,"061/15"]
["062/15",{"$f":"IFERROR(CONCATENATE(VLOOKUP(A64,'2018'!$A$1:$U$99958,3,),TEXT(VLOOKUP(A64,'2018'!$A$1:$U$99958,2,),\"000\"),\"/\",YEAR(VLOOKUP(A64,'2018'!$A$1:$U$99958,4,))),\"\")","v":""},null,"062/15",null,null,"062/15",null,null,"062/15",null,null,"062/15"]
["063/15",{"$f":"IFERROR(CONCATENATE(VLOOKUP(A65,'2018'!$A$1:$U$99958,3,),TEXT(VLOOKUP(A65,'2018'!$A$1:$U$99958,2,),\"000\"),\"/\",YEAR(VLOOKUP(A65,'2018'!$A$1:$U$99958,4,))),\"\")","v":""},null,"063/15",null,null,"063/15",null,null,"063/15",null,null,"063/15"]
["064/15",{"$f":"IFERROR(CONCATENATE(VLOOKUP(A66,'2018'!$A$1:$U$99958,3,),TEXT(VLOOKUP(A66,'2018'!$A$1:$U$99958,2,),\"000\"),\"/\",YEAR(VLOOKUP(A66,'2018'!$A$1:$U$99958,4,))),\"\")","v":""},null,"064/15",null,null,"064/15",null,null,"064/15",null,null,"064/15"]
["065/15",{"$f":"IFERROR(CONCATENATE(VLOOKUP(A67,'2018'!$A$1:$U$99958,3,),TEXT(VLOOKUP(A67,'2018'!$A$1:$U$99958,2,),\"000\"),\"/\",YEAR(VLOOKUP(A67,'2018'!$A$1:$U$99958,4,))),\"\")","v":""},null,"065/15",null,null,"065/15",null,null,"065/15",null,null,"065/15"]
["066/15",{"$f":"IFERROR(CONCATENATE(VLOOKUP(A68,'2018'!$A$1:$U$99958,3,),TEXT(VLOOKUP(A68,'2018'!$A$1:$U$99958,2,),\"000\"),\"/\",YEAR(VLOOKUP(A68,'2018'!$A$1:$U$99958,4,))),\"\")","v":""},null,"066/15",null,null,"066/15",null,null,"066/15",null,null,"066/15"]
["067/15",{"$f":"IFERROR(CONCATENATE(VLOOKUP(A69,'2018'!$A$1:$U$99958,3,),TEXT(VLOOKUP(A69,'2018'!$A$1:$U$99958,2,),\"000\"),\"/\",YEAR(VLOOKUP(A69,'2018'!$A$1:$U$99958,4,))),\"\")","v":""},null,"067/15",null,null,"067/15",null,null,"067/15",null,null,"067/15"]
["068/15",{"$f":"IFERROR(CONCATENATE(VLOOKUP(A70,'2018'!$A$1:$U$99958,3,),TEXT(VLOOKUP(A70,'2018'!$A$1:$U$99958,2,),\"000\"),\"/\",YEAR(VLOOKUP(A70,'2018'!$A$1:$U$99958,4,))),\"\")","v":""},null,"068/15",null,null,"068/15",null,null,"068/15",null,null,"068/15"]
["069/15",{"$f":"IFERROR(CONCATENATE(VLOOKUP(A71,'2018'!$A$1:$U$99958,3,),TEXT(VLOOKUP(A71,'2018'!$A$1:$U$99958,2,),\"000\"),\"/\",YEAR(VLOOKUP(A71,'2018'!$A$1:$U$99958,4,))),\"\")","v":""},null,"069/15",null,null,"069/15",null,null,"069/15",null,null,"069/15"]
["070/15",{"$f":"IFERROR(CONCATENATE(VLOOKUP(A72,'2018'!$A$1:$U$99958,3,),TEXT(VLOOKUP(A72,'2018'!$A$1:$U$99958,2,),\"000\"),\"/\",YEAR(VLOOKUP(A72,'2018'!$A$1:$U$99958,4,))),\"\")","v":""},null,"070/15",null,null,"070/15",null,null,"070/15",null,null,"070/15"]

{"sheet":"GESTÃO DE CONTRATOS","index":1,"n_rows":1175,"n_cols":21,"rows_kept":1175,"cut":false,"hidden":true,"merged":[[1,11,1,12],[0,0,0,12],[0,13,0,19],[39,0,39,12],[7,2,9,2],[7,3,9,3],[7,11,9,11],[7,12,9,12],[10,2,11,2],[10,3,11,3],[12,2,13,2],[12,3,13,3]]}
["CONTRATOS",null,null,null,null,null,null,null,null,null,null,null,null,"ADITIVOS"]
["PROCESSO","INST.","LICITAÇÃO","OBJETO","CREDOR","VIG. (DIAS)","ASSINATURA","INÍCIO","TÉRMINO","STATUS","VALOR R$","PUBLICAÇÃO",null,"ADITIVO","ASSINT.","INÍCIO","TÉRMINO","STATUS","PUBLICAÇÃO","DATA LIMITE","FIM"]
["139/14",{"$f":"IF(A3<>\"\",VLOOKUP(A3,'2018'!$A$1:$U$99958,10,),\"\")","v":{"$error":"#N/A"}},{"$f":"IF(A3<>\"\",CONCATENATE(VLOOKUP(A3,'2018'!$A$1:$U$99958,3,),TEXT(VLOOKUP(A3,'2018'!$A$1:$U$99958,2,),\"000\"),\"/\",TEXT(VLOOKUP(A3,'2018'!$A$1:$U$99958,4,),\"aa\")),\"\")","v":{"$error":"#N/A"}},{"$f":"IF(A3<>\"\",VLOOKUP(A3,'2018'!$A$1:$U$99958,5,),\"\")","v":{"$error":"#N/A"}},{"$f":"IF(A3<>\"\",IF(VLOOKUP(A3,'2018'!$A$1:$U$99958,7,)=\"\",\"\",VLOOKUP(A3,'2018'!$A$1:$U$99958,7,)),\"\")","v":{"$error":"#N/A"}},{"$f":"IF(A3<>\"\",IF(VLOOKUP(A3,'2018'!$A$1:$U$99958,13,)=\"\",\"\",VLOOKUP(A3,'2018'!$A$1:$U$99958,13,)),\"\")","v":{"$error":"#N/A"}},{"$f":"IF(A3<>\"\",IF(VLOOKUP(A3,'2018'!$A$1:$U$99958,11,)=\"\",\"\",VLOOKUP(A3,'2018'!$A$1:$U$99958,11,)),\"\")","v":{"$error":"#N/A"}},{"$f":"IF(A3<>\"\",IF(VLOOKUP(A3,'2018'!$A$1:$U$99958,11,)=\"\",\"\",VLOOKUP(A3,'2018'!$A$1:$U$99958,11,)),\"\")","v":{"$error":"#N/A"}},{"$f":"IF(H3<>\"\",H3+F3,\"\")","v":{"$error":"#N/A"}},{"$f":"IF(U3=\"\",IF(I3=\"\",\"\",IF(N3<>\"\",\">>\",IF(AND(DAYS360(TODAY(),I3)<31,DAYS360(TODAY(),I3)>0),CONCATENATE(\"EXPIRANDO (\",DAYS360(TODAY(),I3),\")\"),IF(DAYS360(TODAY(),I3)>30,\"VIGENTE\",IF(OR(DAYS360(TODAY(),I3)=0,DAYS360(TODAY(),I3)<0),\"EXPIRADO\"))))),\"CONCLUÍDO\")","v":{"$error":"#N/A"}},{"$f":"IF(A3<>\"\",IF(VLOOKUP(A3,'2018'!$A$1:$U$99958,8,)=\"\",\"\",VLOOKUP(A3,'2018'!$A$1:$U$99958,8,)),\"\")","v":{"$error":"#N/A"}},{"$f":"IF(A3<>\"\",IF(VLOOKUP(A3,'2018'!$A$1:$U$99958,15,)=\"\",\"\",VLOOKUP(A3,'2018'!$A$1:$U$99958,15,)),\"\")","v":{"$error":"#N/A"}},{"$f":"IFERROR(DAYS360(L3,WORKDAY(EOMONTH(G3,0),5,#REF!)),\"\")","v":""},null,null,null,{"$f":"IF(P3<>\"\",P3+F3,\"\")","v":""},{"$f":"IF(Q3=\"\",\"\",IF(AND(DAYS360(TODAY(),Q3)<31,DAYS360(TODAY(),Q3)>0),\"EXPIRANDO\",IF(DAYS360(TODAY(),Q3)>30,\"VIGENTE\",IF(OR(DAYS360(TODAY(),Q3)=0,DAYS360(TODAY(),Q3)<0),\"EXPIRADO\"))))","v":""},null,{"$f":"IF(OR(O3=\"\",S3<>\"\"),\"\",WORKDAY(EOMONTH(O3,0),5,#REF!))","v":""}]
[]
[]
[]
[]
[]
[]
[]
[]
[]
[]
[]
[]
[]
[]
[]
[]
[]
[]
[]
[]
[]
[]
[]
[]
[]
[]
[]
[]
[]
[]
[]
[]
[]
[]
[]
[]
[]
[]
[]
[]
[]
[]
[]
[]
[]
[]
[]
[]
[]
[]
[]
[]
[]
[]
[]
[]
[]
[]
[]
[]
[]
[]
[]
[]
[]
[]
[]
[]
[]
[]
[]
[]
[]
[]
[]
[]
[]
[]
[]
[]
[]
[]
[]
[]
[]
[]
[]
[]
[]
[]
[]
[]
[]
[]
[]
[]
[]
[]
[]
[]
[]
[]
[]
[]
[]
[]
[]
[]
[]
[]
[]
[]
[]
[]
[]
[]
[]
[]
[]
[]
[]
[]
[]
[]
[]
[]
[]
[]
[]
[null,null,null,null,null,null,null,null,{"$f":"IF(H133<>\"\",H133+F133,\"\")","v":""},{"$f":"IF(I133=\"\",\"\",IF(AND(DAYS360(TODAY(),I133)<16,DAYS360(TODAY(),I133)>0),\"EXPIRANDO\",IF(DAYS360(TODAY(),I133)>15,\"VIGENTE\",IF(OR(DAYS360(TODAY(),I133)=0,DAYS360(TODAY(),I133)<0),\"EXPIRADO\"))))","v":""},null,null,null,null,null,null,{"$f":"IF(P133<>\"\",P133+F133,\"\")","v":""},{"$f":"IF(Q133=\"\",\"\",IF(T133<>\"\",\"---->\",IF(AND(DAYS360(TODAY(),Q133)<16,DAYS360(TODAY(),Q133)>0),\"EXPIRANDO\",IF(DAYS360(TODAY(),Q133)>15,\"VIGENTE\",IF(OR(DAYS360(TODAY(),Q133)=0,DAYS360(TODAY(),Q133)<0),\"EXPIRADO\")))))","v":""}]
[null,null,null,null,null,null,null,null,"","",null,null,null,null,null,null,"",""]
[null,null,null,null,null,null,null,null,"","",null,null,null,null,null,null,"",""]
[null,null,null,null,null,null,null,null,"","",null,null,null,null,null,null,"",""]
[null,null,null,null,null,null,null,null,"","",null,null,null,null,null,null,"",""]
[null,null,null,null,null,null,null,null,"","",null,null,null,null,null,null,"",""]
[null,null,null,null,null,null,null,null,"","",null,null,null,null,null,null,"",""]
[null,null,null,null,null,null,null,null,"","",null,null,null,null,null,null,"",""]
[null,null,null,null,null,null,null,null,"","",null,null,null,null,null,null,"",""]
[null,null,null,null,null,null,null,null,"","",null,null,null,null,null,null,"",""]
[null,null,null,null,null,null,null,null,"","",null,null,null,null,null,null,"",""]
[null,null,null,null,null,null,null,null,"","",null,null,null,null,null,null,"",""]
[null,null,null,null,null,null,null,null,"","",null,null,null,null,null,null,"",""]
[null,null,null,null,null,null,null,null,"","",null,null,null,null,null,null,"",""]
[null,null,null,null,null,null,null,null,"","",null,null,null,null,null,null,"",""]
[null,null,null,null,null,null,null,null,"","",null,null,null,null,null,null,"",""]
[null,null,null,null,null,null,null,null,"","",null,null,null,null,null,null,"",""]
[null,null,null,null,null,null,null,null,"","",null,null,null,null,null,null,"",""]
[null,null,null,null,null,null,null,null,"","",null,null,null,null,null,null,"",""]
[null,null,null,null,null,null,null,null,"","",null,null,null,null,null,null,"",""]
[null,null,null,null,null,null,null,null,"","",null,null,null,null,null,null,"",""]
[null,null,null,null,null,null,null,null,"","",null,null,null,null,null,null,"",""]
[null,null,null,null,null,null,null,null,"","",null,null,null,null,null,null,"",""]
[null,null,null,null,null,null,null,null,"","",null,null,null,null,null,null,"",""]
[null,null,null,null,null,null,null,null,"","",null,null,null,null,null,null,"",""]
[null,null,null,null,null,null,null,null,"","",null,null,null,null,null,null,"",""]
[null,null,null,null,null,null,null,null,"","",null,null,null,null,null,null,"",""]
[null,null,null,null,null,null,null,null,"","",null,null,null,null,null,null,"",""]
[null,null,null,null,null,null,null,null,"","",null,null,null,null,null,null,"",""]
[null,null,null,null,null,null,null,null,"","",null,null,null,null,null,null,"",""]
[null,null,null,null,null,null,null,null,"","",null,null,null,null,null,null,"",""]
[null,null,null,null,null,null,null,null,"","",null,null,null,null,null,null,"",""]
[null,null,null,null,null,null,null,null,"","",null,null,null,null,null,null,"",""]
[null,null,null,null,null,null,null,null,"","",null,null,null,null,null,null,"",""]
[null,null,null,null,null,null,null,null,"","",null,null,null,null,null,null,"",""]
[null,null,null,null,null,null,null,null,"","",null,null,null,null,null,null,"",""]
[null,null,null,null,null,null,null,null,"","",null,null,null,null,null,null,"",""]
[null,null,null,null,null,null,null,null,{"$f":"IF(H170<>\"\",H170+F170,\"\")","v":""},"",null,null,null,null,null,null,{"$f":"IF(P170<>\"\",P170+F170,\"\")","v":""},""]
[null,null,null,null,null,null,null,null,"","",null,null,null,null,null,null,"",""]
[null,null,null,null,null,null,null,null,"","",null,null,null,null,null,null,"",""]
[null,null,null,null,null,null,null,null,"","",null,null,null,null,null,null,"",""]
[null,null,null,null,null,null,null,null,"",{"$f":"IF(I174=\"\",\"\",IF(AND(DAYS360(TODAY(),I174)<16,DAYS360(TODAY(),I174)>0),\"EXPIRANDO\",IF(DAYS360(TODAY(),I174)>15,\"VIGENTE\",IF(OR(DAYS360(TODAY(),I174)=0,DAYS360(TODAY(),I174)<0),\"EXPIRADO\"))))","v":""},null,null,null,null,null,null,"",{"$f":"IF(Q174=\"\",\"\",IF(T174<>\"\",\"---->\",IF(AND(DAYS360(TODAY(),Q174)<16,DAYS360(TODAY(),Q174)>0),\"EXPIRANDO\",IF(DAYS360(TODAY(),Q174)>15,\"VIGENTE\",IF(OR(DAYS360(TODAY(),Q174)=0,DAYS360(TODAY(),Q174)<0),\"EXPIRADO\")))))","v":""}]
[null,null,null,null,null,null,null,null,"","",null,null,null,null,null,null,"",""]
[null,null,null,null,null,null,null,null,"","",null,null,null,null,null,null,"",""]
[null,null,null,null,null,null,null,null,"","",null,null,null,null,null,null,"",""]
[null,null,null,null,null,null,null,null,"","",null,null,null,null,null,null,"",""]
[null,null,null,null,null,null,null,null,"","",null,null,null,null,null,null,"",""]
[null,null,null,null,null,null,null,null,"","",null,null,null,null,null,null,"",""]
[null,null,null,null,null,null,null,null,"","",null,null,null,null,null,null,"",""]
[null,null,null,null,null,null,null,null,"","",null,null,null,null,null,null,"",""]
[null,null,null,null,null,null,null,null,"","",null,null,null,null,null,null,"",""]
[null,null,null,null,null,null,null,null,"","",null,null,null,null,null,null,"",""]
[null,null,null,null,null,null,null,null,"","",null,null,null,null,null,null,"",""]
[null,null,null,null,null,null,null,null,"","",null,null,null,null,null,null,"",""]
[null,null,null,null,null,null,null,null,"","",null,null,null,null,null,null,"",""]
[null,null,null,null,null,null,null,null,"","",null,null,null,null,null,null,"",""]
[null,null,null,null,null,null,null,null,"","",null,null,null,null,null,null,"",""]
[null,null,null,null,null,null,null,null,"","",null,null,null,null,null,null,"",""]
[null,null,null,null,null,null,null,null,"","",null,null,null,null,null,null,"",""]
[null,null,null,null,null,null,null,null,"","",null,null,null,null,null,null,"",""]
[null,null,null,null,null,null,null,null,"","",null,null,null,null,null,null,"",""]
[null,null,null,null,null,null,null,null,"","",null,null,null,null,null,null,"",""]
[null,null,null,null,null,null,null,null,"","",null,null,null,null,null,null,"",""]
[null,null,null,null,null,null,null,null,"","",null,null,null,null,null,null,"",""]
[null,null,null,null,null,null,null,null,"","",null,null,null,null,null,null,"",""]
[null,null,null,null,null,null,null,null,"","",null,null,null,null,null,null,"",""]
[null,null,null,null,null,null,null,null,"","",null,null,null,null,null,null,"",""]
[null,null,null,null,null,null,null,null,"","",null,null,null,null,null,null,"",""]
[null,null,null,null,null,null,null,null,"","",null,null,null,null,null,null,"",""]
[null,null,null,null,null,null,null,null,"","",null,null,null,null,null,null,"",""]
[null,null,null,null,null,null,null,null,"","",null,null,null,null,null,null,"",""]
[null,null,null,null,null,null,null,null,"","",null,null,null,null,null,null,"",""]
[null,null,null,null,null,null,null,null,"","",null,null,null,null,null,null,"",""]
[null,null,null,null,null,null,null,null,"","",null,null,null,null,null,null,"",""]
[null,null,null,null,null,null,null,null,"","",null,null,null,null,null,null,"",""]
[null,null,null,null,null,null,null,null,"","",null,null,null,null,null,null,"",""]
[null,null,null,null,null,null,null,null,"","",null,null,null,null,null,null,"",""]
[null,null,null,null,null,null,null,null,"","",null,null,null,null,null,null,"",""]
[null,null,null,null,null,null,null,null,"","",null,null,null,null,null,null,"",""]
[null,null,null,null,null,null,null,null,"","",null,null,null,null,null,null,"",""]
[null,null,null,null,null,null,null,null,"","",null,null,null,null,null,null,"",""]
[null,null,null,null,null,null,null,null,"","",null,null,null,null,null,null,"",""]
[null,null,null,null,null,null,null,null,"","",null,null,null,null,null,null,"",""]
[null,null,null,null,null,null,null,null,"","",null,null,null,null,null,null,"",""]
[null,null,null,null,null,null,null,null,"","",null,null,null,null,null,null,"",""]
[null,null,null,null,null,null,null,null,"","",null,null,null,null,null,null,"",""]
[null,null,null,null,null,null,null,null,"","",null,null,null,null,null,null,"",""]
[null,null,null,null,null,null,null,null,"","",null,null,null,null,null,null,"",""]
[null,null,null,null,null,null,null,null,"","",null,null,null,null,null,null,"",""]
[null,null,null,null,null,null,null,null,"","",null,null,null,null,null,null,"",""]
[null,null,null,null,null,null,null,null,"","",null,null,null,null,null,null,"",""]
[null,null,null,null,null,null,null,null,"","",null,null,null,null,null,null,"",""]
[null,null,null,null,null,null,null,null,"","",null,null,null,null,null,null,"",""]
[null,null,null,null,null,null,null,null,"","",null,null,null,null,null,null,"",""]
[null,null,null,null,null,null,null,null,"","",null,null,null,null,null,null,"",""]
[null,null,null,null,null,null,null,null,"","",null,null,null,null,null,null,"",""]
[null,null,null,null,null,null,null,null,"","",null,null,null,null,null,null,"",""]
[null,null,null,null,null,null,null,null,"","",null,null,null,null,null,null,"",""]
[null,null,null,null,null,null,null,null,"","",null,null,null,null,null,null,"",""]
[null,null,null,null,null,null,null,null,"","",null,null,null,null,null,null,"",""]
[null,null,null,null,null,null,null,null,"","",null,null,null,null,null,null,"",""]
[null,null,null,null,null,null,null,null,{"$f":"IF(H234<>\"\",H234+F234,\"\")","v":""},"",null,null,null,null,null,null,{"$f":"IF(P234<>\"\",P234+F234,\"\")","v":""},""]
[null,null,null,null,null,null,null,null,"","",null,null,null,null,null,null,"",""]
[null,null,null,null,null,null,null,null,"","",null,null,null,null,null,null,"",""]
[null,null,null,null,null,null,null,null,"","",null,null,null,null,null,null,"",""]
[null,null,null,null,null,null,null,null,"",{"$f":"IF(I238=\"\",\"\",IF(AND(DAYS360(TODAY(),I238)<16,DAYS360(TODAY(),I238)>0),\"EXPIRANDO\",IF(DAYS360(TODAY(),I238)>15,\"VIGENTE\",IF(OR(DAYS360(TODAY(),I238)=0,DAYS360(TODAY(),I238)<0),\"EXPIRADO\"))))","v":""},null,null,null,null,null,null,"",{"$f":"IF(Q238=\"\",\"\",IF(T238<>\"\",\"---->\",IF(AND(DAYS360(TODAY(),Q238)<16,DAYS360(TODAY(),Q238)>0),\"EXPIRANDO\",IF(DAYS360(TODAY(),Q238)>15,\"VIGENTE\",IF(OR(DAYS360(TODAY(),Q238)=0,DAYS360(TODAY(),Q238)<0),\"EXPIRADO\")))))","v":""}]
[null,null,null,null,null,null,null,null,"","",null,null,null,null,null,null,"",""]
[null,null,null,null,null,null,null,null,"","",null,null,null,null,null,null,"",""]
[null,null,null,null,null,null,null,null,"","",null,null,null,null,null,null,"",""]
[null,null,null,null,null,null,null,null,"","",null,null,null,null,null,null,"",""]
[null,null,null,null,null,null,null,null,"","",null,null,null,null,null,null,"",""]
[null,null,null,null,null,null,null,null,"","",null,null,null,null,null,null,"",""]
[null,null,null,null,null,null,null,null,"","",null,null,null,null,null,null,"",""]
[null,null,null,null,null,null,null,null,"","",null,null,null,null,null,null,"",""]
[null,null,null,null,null,null,null,null,"","",null,null,null,null,null,null,"",""]
[null,null,null,null,null,null,null,null,"","",null,null,null,null,null,null,"",""]
[null,null,null,null,null,null,null,null,"","",null,null,null,null,null,null,"",""]
[null,null,null,null,null,null,null,null,"","",null,null,null,null,null,null,"",""]
[null,null,null,null,null,null,null,null,"","",null,null,null,null,null,null,"",""]
[null,null,null,null,null,null,null,null,"","",null,null,null,null,null,null,"",""]
[null,null,null,null,null,null,null,null,"","",null,null,null,null,null,null,"",""]
[null,null,null,null,null,null,null,null,"","",null,null,null,null,null,null,"",""]
[null,null,null,null,null,null,null,null,"","",null,null,null,null,null,null,"",""]
[null,null,null,null,null,null,null,null,"","",null,null,null,null,null,null,"",""]
[null,null,null,null,null,null,null,null,"","",null,null,null,null,null,null,"",""]
[null,null,null,null,null,null,null,null,"","",null,null,null,null,null,null,"",""]
[null,null,null,null,null,null,null,null,"","",null,null,null,null,null,null,"",""]
[null,null,null,null,null,null,null,null,"","",null,null,null,null,null,null,"",""]
[null,null,null,null,null,null,null,null,"","",null,null,null,null,null,null,"",""]
[null,null,null,null,null,null,null,null,"","",null,null,null,null,null,null,"",""]
[null,null,null,null,null,null,null,null,"","",null,null,null,null,null,null,"",""]
[null,null,null,null,null,null,null,null,"","",null,null,null,null,null,null,"",""]
[null,null,null,null,null,null,null,null,"","",null,null,null,null,null,null,"",""]
[null,null,null,null,null,null,null,null,"","",null,null,null,null,null,null,"",""]
[null,null,null,null,null,null,null,null,"","",null,null,null,null,null,null,"",""]
[null,null,null,null,null,null,null,null,"","",null,null,null,null,null,null,"",""]
[null,null,null,null,null,null,null,null,"","",null,null,null,null,null,null,"",""]
[null,null,null,null,null,null,null,null,"","",null,null,null,null,null,null,"",""]
[null,null,null,null,null,null,null,null,"","",null,null,null,null,null,null,"",""]
[null,null,null,null,null,null,null,null,"","",null,null,null,null,null,null,"",""]
[null,null,null,null,null,null,null,null,"","",null,null,null,null,null,null,"",""]
[null,null,null,null,null,null,null,null,"","",null,null,null,null,null,null,"",""]
[null,null,null,null,null,null,null,null,"","",null,null,null,null,null,null,"",""]
[null,null,null,null,null,null,null,null,"","",null,null,null,null,null,null,"",""]
[null,null,null,null,null,null,null,null,"","",null,null,null,null,null,null,"",""]
[null,null,null,null,null,null,null,null,"","",null,null,null,null,null,null,"",""]
[null,null,null,null,null,null,null,null,"","",null,null,null,null,null,null,"",""]
[null,null,null,null,null,null,null,null,"","",null,null,null,null,null,null,"",""]
[null,null,null,null,null,null,null,null,"","",null,null,null,null,null,null,"",""]
[null,null,null,null,null,null,null,null,"","",null,null,null,null,null,null,"",""]
[null,null,null,null,null,null,null,null,"","",null,null,null,null,null,null,"",""]
[null,null,null,null,null,null,null,null,"","",null,null,null,null,null,null,"",""]
[null,null,null,null,null,null,null,null,"","",null,null,null,null,null,null,"",""]
[null,null,null,null,null,null,null,null,"","",null,null,null,null,null,null,"",""]
[null,null,null,null,null,null,null,null,"","",null,null,null,null,null,null,"",""]
[null,null,null,null,null,null,null,null,"","",null,null,null,null,null,null,"",""]
[null,null,null,null,null,null,null,null,"","",null,null,null,null,null,null,"",""]
[null,null,null,null,null,null,null,null,"","",null,null,null,null,null,null,"",""]
[null,null,null,null,null,null,null,null,"","",null,null,null,null,null,null,"",""]
[null,null,null,null,null,null,null,null,"","",null,null,null,null,null,null,"",""]
[null,null,null,null,null,null,null,null,"","",null,null,null,null,null,null,"",""]
[null,null,null,null,null,null,null,null,"","",null,null,null,null,null,null,"",""]
[null,null,null,null,null,null,null,null,"","",null,null,null,null,null,null,"",""]
[null,null,null,null,null,null,null,null,"","",null,null,null,null,null,null,"",""]
[null,null,null,null,null,null,null,null,"","",null,null,null,null,null,null,"",""]
[null,null,null,null,null,null,null,null,{"$f":"IF(H298<>\"\",H298+F298,\"\")","v":""},"",null,null,null,null,null,null,{"$f":"IF(P298<>\"\",P298+F298,\"\")","v":""},""]
[null,null,null,null,null,null,null,null,"","",null,null,null,null,null,null,"",""]
[null,null,null,null,null,null,null,null,"","",null,null,null,null,null,null,"",""]
[null,null,null,null,null,null,null,null,"","",null,null,null,null,null,null,"",""]
[null,null,null,null,null,null,null,null,"",{"$f":"IF(I302=\"\",\"\",IF(AND(DAYS360(TODAY(),I302)<16,DAYS360(TODAY(),I302)>0),\"EXPIRANDO\",IF(DAYS360(TODAY(),I302)>15,\"VIGENTE\",IF(OR(DAYS360(TODAY(),I302)=0,DAYS360(TODAY(),I302)<0),\"EXPIRADO\"))))","v":""},null,null,null,null,null,null,"",{"$f":"IF(Q302=\"\",\"\",IF(T302<>\"\",\"---->\",IF(AND(DAYS360(TODAY(),Q302)<16,DAYS360(TODAY(),Q302)>0),\"EXPIRANDO\",IF(DAYS360(TODAY(),Q302)>15,\"VIGENTE\",IF(OR(DAYS360(TODAY(),Q302)=0,DAYS360(TODAY(),Q302)<0),\"EXPIRADO\")))))","v":""}]
[null,null,null,null,null,null,null,null,"","",null,null,null,null,null,null,"",""]
[null,null,null,null,null,null,null,null,"","",null,null,null,null,null,null,"",""]
[null,null,null,null,null,null,null,null,"","",null,null,null,null,null,null,"",""]
[null,null,null,null,null,null,null,null,"","",null,null,null,null,null,null,"",""]
[null,null,null,null,null,null,null,null,"","",null,null,null,null,null,null,"",""]
[null,null,null,null,null,null,null,null,"","",null,null,null,null,null,null,"",""]
[null,null,null,null,null,null,null,null,"","",null,null,null,null,null,null,"",""]
[null,null,null,null,null,null,null,null,"","",null,null,null,null,null,null,"",""]
[null,null,null,null,null,null,null,null,"","",null,null,null,null,null,null,"",""]
[null,null,null,null,null,null,null,null,"","",null,null,null,null,null,null,"",""]
[null,null,null,null,null,null,null,null,"","",null,null,null,null,null,null,"",""]
[null,null,null,null,null,null,null,null,"","",null,null,null,null,null,null,"",""]
[null,null,null,null,null,null,null,null,"","",null,null,null,null,null,null,"",""]
[null,null,null,null,null,null,null,null,"","",null,null,null,null,null,null,"",""]
[null,null,null,null,null,null,null,null,"","",null,null,null,null,null,null,"",""]
[null,null,null,null,null,null,null,null,"","",null,null,null,null,null,null,"",""]
[null,null,null,null,null,null,null,null,"","",null,null,null,null,null,null,"",""]
[null,null,null,null,null,null,null,null,"","",null,null,null,null,null,null,"",""]
[null,null,null,null,null,null,null,null,"","",null,null,null,null,null,null,"",""]
[null,null,null,null,null,null,null,null,"","",null,null,null,null,null,null,"",""]
[null,null,null,null,null,null,null,null,"","",null,null,null,null,null,null,"",""]
[null,null,null,null,null,null,null,null,"","",null,null,null,null,null,null,"",""]
[null,null,null,null,null,null,null,null,"","",null,null,null,null,null,null,"",""]
[null,null,null,null,null,null,null,null,"","",null,null,null,null,null,null,"",""]
[null,null,null,null,null,null,null,null,"","",null,null,null,null,null,null,"",""]
[null,null,null,null,null,null,null,null,"","",null,null,null,null,null,null,"",""]
[null,null,null,null,null,null,null,null,"","",null,null,null,null,null,null,"",""]
[null,null,null,null,null,null,null,null,"","",null,null,null,null,null,null,"",""]
[null,null,null,null,null,null,null,null,"","",null,null,null,null,null,null,"",""]
[null,null,null,null,null,null,null,null,"","",null,null,null,null,null,null,"",""]
[null,null,null,null,null,null,null,null,"","",null,null,null,null,null,null,"",""]
[null,null,null,null,null,null,null,null,"","",null,null,null,null,null,null,"",""]
[null,null,null,null,null,null,null,null,"","",null,null,null,null,null,null,"",""]
[null,null,null,null,null,null,null,null,"","",null,null,null,null,null,null,"",""]
[null,null,null,null,null,null,null,null,"","",null,null,null,null,null,null,"",""]
[null,null,null,null,null,null,null,null,"","",null,null,null,null,null,null,"",""]
[null,null,null,null,null,null,null,null,"","",null,null,null,null,null,null,"",""]
[null,null,null,null,null,null,null,null,"","",null,null,null,null,null,null,"",""]
[null,null,null,null,null,null,null,null,"","",null,null,null,null,null,null,"",""]
[null,null,null,null,null,null,null,null,"","",null,null,null,null,null,null,"",""]
[null,null,null,null,null,null,null,null,"","",null,null,null,null,null,null,"",""]
[null,null,null,null,null,null,null,null,"","",null,null,null,null,null,null,"",""]
[null,null,null,null,null,null,null,null,"","",null,null,null,null,null,null,"",""]
[null,null,null,null,null,null,null,null,"","",null,null,null,null,null,null,"",""]
[null,null,null,null,null,null,null,null,"","",null,null,null,null,null,null,"",""]
[null,null,null,null,null,null,null,null,"","",null,null,null,null,null,null,"",""]
[null,null,null,null,null,null,null,null,"","",null,null,null,null,null,null,"",""]
[null,null,null,null,null,null,null,null,"","",null,null,null,null,null,null,"",""]
[null,null,null,null,null,null,null,null,"","",null,null,null,null,null,null,"",""]
[null,null,null,null,null,null,null,null,"","",null,null,null,null,null,null,"",""]
[null,null,null,null,null,null,null,null,"","",null,null,null,null,null,null,"",""]
[null,null,null,null,null,null,null,null,"","",null,null,null,null,null,null,"",""]
[null,null,null,null,null,null,null,null,"","",null,null,null,null,null,null,"",""]
[null,null,null,null,null,null,null,null,"","",null,null,null,null,null,null,"",""]
[null,null,null,null,null,null,null,null,"","",null,null,null,null,null,null,"",""]
[null,null,null,null,null,null,null,null,"","",null,null,null,null,null,null,"",""]
[null,null,null,null,null,null,null,null,"","",null,null,null,null,null,null,"",""]
[null,null,null,null,null,null,null,null,"","",null,null,null,null,null,null,"",""]
[null,null,null,null,null,null,null,null,"","",null,null,null,null,null,null,"",""]
[null,null,null,null,null,null,null,null,{"$f":"IF(H362<>\"\",H362+F362,\"\")","v":""},"",null,null,null,null,null,null,{"$f":"IF(P362<>\"\",P362+F362,\"\")","v":""},""]
[null,null,null,null,null,null,null,null,"","",null,null,null,null,null,null,"",""]
[null,null,null,null,null,null,null,null,"","",null,null,null,null,null,null,"",""]
[null,null,null,null,null,null,null,null,"","",null,null,null,null,null,null,"",""]
[null,null,null,null,null,null,null,null,"",{"$f":"IF(I366=\"\",\"\",IF(AND(DAYS360(TODAY(),I366)<16,DAYS360(TODAY(),I366)>0),\"EXPIRANDO\",IF(DAYS360(TODAY(),I366)>15,\"VIGENTE\",IF(OR(DAYS360(TODAY(),I366)=0,DAYS360(TODAY(),I366)<0),\"EXPIRADO\"))))","v":""},null,null,null,null,null,null,"",{"$f":"IF(Q366=\"\",\"\",IF(T366<>\"\",\"---->\",IF(AND(DAYS360(TODAY(),Q366)<16,DAYS360(TODAY(),Q366)>0),\"EXPIRANDO\",IF(DAYS360(TODAY(),Q366)>15,\"VIGENTE\",IF(OR(DAYS360(TODAY(),Q366)=0,DAYS360(TODAY(),Q366)<0),\"EXPIRADO\")))))","v":""}]
[null,null,null,null,null,null,null,null,"","",null,null,null,null,null,null,"",""]
[null,null,null,null,null,null,null,null,"","",null,null,null,null,null,null,"",""]
[null,null,null,null,null,null,null,null,"","",null,null,null,null,null,null,"",""]
[null,null,null,null,null,null,null,null,"","",null,null,null,null,null,null,"",""]
[null,null,null,null,null,null,null,null,"","",null,null,null,null,null,null,"",""]
[null,null,null,null,null,null,null,null,"","",null,null,null,null,null,null,"",""]
[null,null,null,null,null,null,null,null,"","",null,null,null,null,null,null,"",""]
[null,null,null,null,null,null,null,null,"","",null,null,null,null,null,null,"",""]
[null,null,null,null,null,null,null,null,"","",null,null,null,null,null,null,"",""]
[null,null,null,null,null,null,null,null,"","",null,null,null,null,null,null,"",""]
[null,null,null,null,null,null,null,null,"","",null,null,null,null,null,null,"",""]
[null,null,null,null,null,null,null,null,"","",null,null,null,null,null,null,"",""]
[null,null,null,null,null,null,null,null,"","",null,null,null,null,null,null,"",""]
[null,null,null,null,null,null,null,null,"","",null,null,null,null,null,null,"",""]
[null,null,null,null,null,null,null,null,"","",null,null,null,null,null,null,"",""]
[null,null,null,null,null,null,null,null,"","",null,null,null,null,null,null,"",""]
[null,null,null,null,null,null,null,null,"","",null,null,null,null,null,null,"",""]
[null,null,null,null,null,null,null,null,"","",null,null,null,null,null,null,"",""]
[null,null,null,null,null,null,null,null,"","",null,null,null,null,null,null,"",""]
[null,null,null,null,null,null,null,null,"","",null,null,null,null,null,null,"",""]
[null,null,null,null,null,null,null,null,"","",null,null,null,null,null,null,"",""]
[null,null,null,null,null,null,null,null,"","",null,null,null,null,null,null,"",""]
[null,null,null,null,null,null,null,null,"","",null,null,null,null,null,null,"",""]
[null,null,null,null,null,null,null,null,"","",null,null,null,null,null,null,"",""]
[null,null,null,null,null,null,null,null,"","",null,null,null,null,null,null,"",""]
[null,null,null,null,null,null,null,null,"","",null,null,null,null,null,null,"",""]
[null,null,null,null,null,null,null,null,"","",null,null,null,null,null,null,"",""]
[null,null,null,null,null,null,null,null,"","",null,null,null,null,null,null,"",""]
[null,null,null,null,null,null,null,null,"","",null,null,null,null,null,null,"",""]
[null,null,null,null,null,null,null,null,"","",null,null,null,null,null,null,"",""]
[null,null,null,null,null,null,null,null,"","",null,null,null,null,null,null,"",""]
[null,null,null,null,null,null,null,null,"","",null,null,null,null,null,null,"",""]
[null,null,null,null,null,null,null,null,"","",null,null,null,null,null,null,"",""]
[null,null,null,null,null,null,null,null,"","",null,null,null,null,null,null,"",""]
[null,null,null,null,null,null,null,null,"","",null,null,null,null,null,null,"",""]
[null,null,null,null,null,null,null,null,"","",null,null,null,null,null,null,"",""]
[null,null,null,null,null,null,null,null,"","",null,null,null,null,null,null,"",""]
[null,null,null,null,null,null,null,null,"","",null,null,null,null,null,null,"",""]
[null,null,null,null,null,null,null,null,"","",null,null,null,null,null,null,"",""]
[null,null,null,null,null,null,null,null,"","",null,null,null,null,null,null,"",""]
[null,null,null,null,null,null,null,null,"","",null,null,null,null,null,null,"",""]
[null,null,null,null,null,null,null,null,"","",null,null,null,null,null,null,"",""]
[null,null,null,null,null,null,null,null,"","",null,null,null,null,null,null,"",""]
[null,null,null,null,null,null,null,null,"","",null,null,null,null,null,null,"",""]
[null,null,null,null,null,null,null,null,"","",null,null,null,null,null,null,"",""]
[null,null,null,null,null,null,null,null,"","",null,null,null,null,null,null,"",""]
[null,null,null,null,null,null,null,null,"","",null,null,null,null,null,null,"",""]
[null,null,null,null,null,null,null,null,"","",null,null,null,null,null,null,"",""]
[null,null,null,null,null,null,null,null,"","",null,null,null,null,null,null,"",""]
[null,null,null,null,null,null,null,null,"","",null,null,null,null,null,null,"",""]
[null,null,null,null,null,null,null,null,"","",null,null,null,null,null,null,"",""]
[null,null,null,null,null,null,null,null,"","",null,null,null,null,null,null,"",""]
[null,null,null,null,null,null,null,null,"","",null,null,null,null,null,null,"",""]
[null,null,null,null,null,null,null,null,"","",null,null,null,null,null,null,"",""]
[null,null,null,null,null,null,null,null,"","",null,null,null,null,null,null,"",""]
[null,null,null,null,null,null,null,null,"","",null,null,null,null,null,null,"",""]
[null,null,null,null,null,null,null,null,"","",null,null,null,null,null,null,"",""]
[null,null,null,null,null,null,null,null,"","",null,null,null,null,null,null,"",""]
[null,null,null,null,null,null,null,null,"","",null,null,null,null,null,null,"",""]
[null,null,null,null,null,null,null,null,{"$f":"IF(H426<>\"\",H426+F426,\"\")","v":""},"",null,null,null,null,null,null,{"$f":"IF(P426<>\"\",P426+F426,\"\")","v":""},""]
[null,null,null,null,null,null,null,null,"","",null,null,null,null,null,null,"",""]
[null,null,null,null,null,null,null,null,"","",null,null,null,null,null,null,"",""]
[null,null,null,null,null,null,null,null,"","",null,null,null,null,null,null,"",""]
[null,null,null,null,null,null,null,null,"",{"$f":"IF(I430=\"\",\"\",IF(AND(DAYS360(TODAY(),I430)<16,DAYS360(TODAY(),I430)>0),\"EXPIRANDO\",IF(DAYS360(TODAY(),I430)>15,\"VIGENTE\",IF(OR(DAYS360(TODAY(),I430)=0,DAYS360(TODAY(),I430)<0),\"EXPIRADO\"))))","v":""},null,null,null,null,null,null,"",{"$f":"IF(Q430=\"\",\"\",IF(T430<>\"\",\"---->\",IF(AND(DAYS360(TODAY(),Q430)<16,DAYS360(TODAY(),Q430)>0),\"EXPIRANDO\",IF(DAYS360(TODAY(),Q430)>15,\"VIGENTE\",IF(OR(DAYS360(TODAY(),Q430)=0,DAYS360(TODAY(),Q430)<0),\"EXPIRADO\")))))","v":""}]
[null,null,null,null,null,null,null,null,"","",null,null,null,null,null,null,"",""]
[null,null,null,null,null,null,null,null,"","",null,null,null,null,null,null,"",""]
[null,null,null,null,null,null,null,null,"","",null,null,null,null,null,null,"",""]
[null,null,null,null,null,null,null,null,"","",null,null,null,null,null,null,"",""]
[null,null,null,null,null,null,null,null,"","",null,null,null,null,null,null,"",""]
[null,null,null,null,null,null,null,null,"","",null,null,null,null,null,null,"",""]
[null,null,null,null,null,null,null,null,"","",null,null,null,null,null,null,"",""]
[null,null,null,null,null,null,null,null,"","",null,null,null,null,null,null,"",""]
[null,null,null,null,null,null,null,null,"","",null,null,null,null,null,null,"",""]
[null,null,null,null,null,null,null,null,"","",null,null,null,null,null,null,"",""]
[null,null,null,null,null,null,null,null,"","",null,null,null,null,null,null,"",""]
[null,null,null,null,null,null,null,null,"","",null,null,null,null,null,null,"",""]
[null,null,null,null,null,null,null,null,"","",null,null,null,null,null,null,"",""]
[null,null,null,null,null,null,null,null,"","",null,null,null,null,null,null,"",""]
[null,null,null,null,null,null,null,null,"","",null,null,null,null,null,null,"",""]
[null,null,null,null,null,null,null,null,"","",null,null,null,null,null,null,"",""]
[null,null,null,null,null,null,null,null,"","",null,null,null,null,null,null,"",""]
[null,null,null,null,null,null,null,null,"","",null,null,null,null,null,null,"",""]
[null,null,null,null,null,null,null,null,"","",null,null,null,null,null,null,"",""]
[null,null,null,null,null,null,null,null,"","",null,null,null,null,null,null,"",""]
[null,null,null,null,null,null,null,null,"","",null,null,null,null,null,null,"",""]
[null,null,null,null,null,null,null,null,"","",null,null,null,null,null,null,"",""]
[null,null,null,null,null,null,null,null,"","",null,null,null,null,null,null,"",""]
[null,null,null,null,null,null,null,null,"","",null,null,null,null,null,null,"",""]
[null,null,null,null,null,null,null,null,"","",null,null,null,null,null,null,"",""]
[null,null,null,null,null,null,null,null,"","",null,null,null,null,null,null,"",""]
[null,null,null,null,null,null,null,null,"","",null,null,null,null,null,null,"",""]
[null,null,null,null,null,null,null,null,"","",null,null,null,null,null,null,"",""]
[null,null,null,null,null,null,null,null,"","",null,null,null,null,null,null,"",""]
[null,null,null,null,null,null,null,null,"","",null,null,null,null,null,null,"",""]
[null,null,null,null,null,null,null,null,"","",null,null,null,null,null,null,"",""]
[null,null,null,null,null,null,null,null,"","",null,null,null,null,null,null,"",""]
[null,null,null,null,null,null,null,null,"","",null,null,null,null,null,null,"",""]
[null,null,null,null,null,null,null,null,"","",null,null,null,null,null,null,"",""]
[null,null,null,null,null,null,null,null,"","",null,null,null,null,null,null,"",""]
[null,null,null,null,null,null,null,null,"","",null,null,null,null,null,null,"",""]
[null,null,null,null,null,null,null,null,"","",null,null,null,null,null,null,"",""]
[null,null,null,null,null,null,null,null,"","",null,null,null,null,null,null,"",""]
[null,null,null,null,null,null,null,null,"","",null,null,null,null,null,null,"",""]
[null,null,null,null,null,null,null,null,"","",null,null,null,null,null,null,"",""]
[null,null,null,null,null,null,null,null,"","",null,null,null,null,null,null,"",""]
[null,null,null,null,null,null,null,null,"","",null,null,null,null,null,null,"",""]
[null,null,null,null,null,null,null,null,"","",null,null,null,null,null,null,"",""]
[null,null,null,null,null,null,null,null,"","",null,null,null,null,null,null,"",""]
[null,null,null,null,null,null,null,null,"","",null,null,null,null,null,null,"",""]
[null,null,null,null,null,null,null,null,"","",null,null,null,null,null,null,"",""]
[null,null,null,null,null,null,null,null,"","",null,null,null,null,null,null,"",""]
[null,null,null,null,null,null,null,null,"","",null,null,null,null,null,null,"",""]
[null,null,null,null,null,null,null,null,"","",null,null,null,null,null,null,"",""]
[null,null,null,null,null,null,null,null,"","",null,null,null,null,null,null,"",""]
[null,null,null,null,null,null,null,null,"","",null,null,null,null,null,null,"",""]
[null,null,null,null,null,null,null,null,"","",null,null,null,null,null,null,"",""]
[null,null,null,null,null,null,null,null,"","",null,null,null,null,null,null,"",""]
[null,null,null,null,null,null,null,null,"","",null,null,null,null,null,null,"",""]
[null,null,null,null,null,null,null,null,"","",null,null,null,null,null,null,"",""]
[null,null,null,null,null,null,null,null,"","",null,null,null,null,null,null,"",""]
[null,null,null,null,null,null,null,null,"","",null,null,null,null,null,null,"",""]
[null,null,null,null,null,null,null,null,"","",null,null,null,null,null,null,"",""]
[null,null,null,null,null,null,null,null,"","",null,null,null,null,null,null,"",""]
[null,null,null,null,null,null,null,null,{"$f":"IF(H490<>\"\",H490+F490,\"\")","v":""},"",null,null,null,null,null,null,{"$f":"IF(P490<>\"\",P490+F490,\"\")","v":""},""]
[null,null,null,null,null,null,null,null,"","",null,null,null,null,null,null,"",""]
[null,null,null,null,null,null,null,null,"","",null,null,null,null,null,null,"",""]
[null,null,null,null,null,null,null,null,"","",null,null,null,null,null,null,"",""]
[null,null,null,null,null,null,null,null,"",{"$f":"IF(I494=\"\",\"\",IF(AND(DAYS360(TODAY(),I494)<16,DAYS360(TODAY(),I494)>0),\"EXPIRANDO\",IF(DAYS360(TODAY(),I494)>15,\"VIGENTE\",IF(OR(DAYS360(TODAY(),I494)=0,DAYS360(TODAY(),I494)<0),\"EXPIRADO\"))))","v":""},null,null,null,null,null,null,"",{"$f":"IF(Q494=\"\",\"\",IF(T494<>\"\",\"---->\",IF(AND(DAYS360(TODAY(),Q494)<16,DAYS360(TODAY(),Q494)>0),\"EXPIRANDO\",IF(DAYS360(TODAY(),Q494)>15,\"VIGENTE\",IF(OR(DAYS360(TODAY(),Q494)=0,DAYS360(TODAY(),Q494)<0),\"EXPIRADO\")))))","v":""}]
[null,null,null,null,null,null,null,null,"","",null,null,null,null,null,null,"",""]
[null,null,null,null,null,null,null,null,"","",null,null,null,null,null,null,"",""]
[null,null,null,null,null,null,null,null,"","",null,null,null,null,null,null,"",""]
[null,null,null,null,null,null,null,null,"","",null,null,null,null,null,null,"",""]
[null,null,null,null,null,null,null,null,"","",null,null,null,null,null,null,"",""]
[null,null,null,null,null,null,null,null,"","",null,null,null,null,null,null,"",""]
[null,null,null,null,null,null,null,null,"","",null,null,null,null,null,null,"",""]
[null,null,null,null,null,null,null,null,"","",null,null,null,null,null,null,"",""]
[null,null,null,null,null,null,null,null,"","",null,null,null,null,null,null,"",""]
[null,null,null,null,null,null,null,null,"","",null,null,null,null,null,null,"",""]
[null,null,null,null,null,null,null,null,"","",null,null,null,null,null,null,"",""]
[null,null,null,null,null,null,null,null,"","",null,null,null,null,null,null,"",""]
[null,null,null,null,null,null,null,null,"","",null,null,null,null,null,null,"",""]
[null,null,null,null,null,null,null,null,"","",null,null,null,null,null,null,"",""]
[null,null,null,null,null,null,null,null,"","",null,null,null,null,null,null,"",""]
[null,null,null,null,null,null,null,null,"","",null,null,null,null,null,null,"",""]
[null,null,null,null,null,null,null,null,"","",null,null,null,null,null,null,"",""]
[null,null,null,null,null,null,null,null,"","",null,null,null,null,null,null,"",""]
[null,null,null,null,null,null,null,null,"","",null,null,null,null,null,null,"",""]
[null,null,null,null,null,null,null,null,"","",null,null,null,null,null,null,"",""]
[null,null,null,null,null,null,null,null,"","",null,null,null,null,null,null,"",""]
[null,null,null,null,null,null,null,null,"","",null,null,null,null,null,null,"",""]
[null,null,null,null,null,null,null,null,"","",null,null,null,null,null,null,"",""]
[null,null,null,null,null,null,null,null,"","",null,null,null,null,null,null,"",""]
[null,null,null,null,null,null,null,null,"","",null,null,null,null,null,null,"",""]
[null,null,null,null,null,null,null,null,"","",null,null,null,null,null,null,"",""]
[null,null,null,null,null,null,null,null,"","",null,null,null,null,null,null,"",""]
[null,null,null,null,null,null,null,null,"","",null,null,null,null,null,null,"",""]
[null,null,null,null,null,null,null,null,"","",null,null,null,null,null,null,"",""]
[null,null,null,null,null,null,null,null,"","",null,null,null,null,null,null,"",""]
[null,null,null,null,null,null,null,null,"","",null,null,null,null,null,null,"",""]
[null,null,null,null,null,null,null,null,"","",null,null,null,null,null,null,"",""]
[null,null,null,null,null,null,null,null,"","",null,null,null,null,null,null,"",""]
[null,null,null,null,null,null,null,null,"","",null,null,null,null,null,null,"",""]
[null,null,null,null,null,null,null,null,"","",null,null,null,null,null,null,"",""]
[null,null,null,null,null,null,null,null,"","",null,null,null,null,null,null,"",""]
[null,null,null,null,null,null,null,null,"","",null,null,null,null,null,null,"",""]
[null,null,null,null,null,null,null,null,"","",null,null,null,null,null,null,"",""]
[null,null,null,null,null,null,null,null,"","",null,null,null,null,null,null,"",""]
[null,null,null,null,null,null,null,null,"","",null,null,null,null,null,null,"",""]
[null,null,null,null,null,null,null,null,"","",null,null,null,null,null,null,"",""]
[null,null,null,null,null,null,null,null,"","",null,null,null,null,null,null,"",""]
[null,null,null,null,null,null,null,null,"","",null,null,null,null,null,null,"",""]
[null,null,null,null,null,null,null,null,"","",null,null,null,null,null,null,"",""]
[null,null,null,null,null,null,null,null,"","",null,null,null,null,null,null,"",""]
[null,null,null,null,null,null,null,null,"","",null,null,null,null,null,null,"",""]
[null,null,null,null,null,null,null,null,"","",null,null,null,null,null,null,"",""]
[null,null,null,null,null,null,null,null,"","",null,null,null,null,null,null,"",""]
[null,null,null,null,null,null,null,null,"","",null,null,null,null,null,null,"",""]
[null,null,null,null,null,null,null,null,"","",null,null,null,null,null,null,"",""]
[null,null,null,null,null,null,null,null,"","",null,null,null,null,null,null,"",""]
[null,null,null,null,null,null,null,null,"","",null,null,null,null,null,null,"",""]
[null,null,null,null,null,null,null,null,"","",null,null,null,null,null,null,"",""]
[null,null,null,null,null,null,null,null,"","",null,null,null,null,null,null,"",""]
[null,null,null,null,null,null,null,null,"","",null,null,null,null,null,null,"",""]
[null,null,null,null,null,null,null,null,"","",null,null,null,null,null,null,"",""]
[null,null,null,null,null,null,null,null,"","",null,null,null,null,null,null,"",""]
[null,null,null,null,null,null,null,null,"","",null,null,null,null,null,null,"",""]
[null,null,null,null,null,null,null,null,"","",null,null,null,null,null,null,"",""]
[null,null,null,null,null,null,null,null,{"$f":"IF(H554<>\"\",H554+F554,\"\")","v":""},"",null,null,null,null,null,null,{"$f":"IF(P554<>\"\",P554+F554,\"\")","v":""},""]
[null,null,null,null,null,null,null,null,"","",null,null,null,null,null,null,"",""]
[null,null,null,null,null,null,null,null,"","",null,null,null,null,null,null,"",""]
[null,null,null,null,null,null,null,null,"","",null,null,null,null,null,null,"",""]
[null,null,null,null,null,null,null,null,"",{"$f":"IF(I558=\"\",\"\",IF(AND(DAYS360(TODAY(),I558)<16,DAYS360(TODAY(),I558)>0),\"EXPIRANDO\",IF(DAYS360(TODAY(),I558)>15,\"VIGENTE\",IF(OR(DAYS360(TODAY(),I558)=0,DAYS360(TODAY(),I558)<0),\"EXPIRADO\"))))","v":""},null,null,null,null,null,null,"",{"$f":"IF(Q558=\"\",\"\",IF(T558<>\"\",\"---->\",IF(AND(DAYS360(TODAY(),Q558)<16,DAYS360(TODAY(),Q558)>0),\"EXPIRANDO\",IF(DAYS360(TODAY(),Q558)>15,\"VIGENTE\",IF(OR(DAYS360(TODAY(),Q558)=0,DAYS360(TODAY(),Q558)<0),\"EXPIRADO\")))))","v":""}]
[null,null,null,null,null,null,null,null,"","",null,null,null,null,null,null,"",""]
[null,null,null,null,null,null,null,null,"","",null,null,null,null,null,null,"",""]
[null,null,null,null,null,null,null,null,"","",null,null,null,null,null,null,"",""]
[null,null,null,null,null,null,null,null,"","",null,null,null,null,null,null,"",""]
[null,null,null,null,null,null,null,null,"","",null,null,null,null,null,null,"",""]
[null,null,null,null,null,null,null,null,"","",null,null,null,null,null,null,"",""]
[null,null,null,null,null,null,null,null,"","",null,null,null,null,null,null,"",""]
[null,null,null,null,null,null,null,null,"","",null,null,null,null,null,null,"",""]
[null,null,null,null,null,null,null,null,"","",null,null,null,null,null,null,"",""]
[null,null,null,null,null,null,null,null,"","",null,null,null,null,null,null,"",""]
[null,null,null,null,null,null,null,null,"","",null,null,null,null,null,null,"",""]
[null,null,null,null,null,null,null,null,"","",null,null,null,null,null,null,"",""]
[null,null,null,null,null,null,null,null,"","",null,null,null,null,null,null,"",""]
[null,null,null,null,null,null,null,null,"","",null,null,null,null,null,null,"",""]
[null,null,null,null,null,null,null,null,"","",null,null,null,null,null,null,"",""]
[null,null,null,null,null,null,null,null,"","",null,null,null,null,null,null,"",""]
[null,null,null,null,null,null,null,null,"","",null,null,null,null,null,null,"",""]
[null,null,null,null,null,null,null,null,"","",null,null,null,null,null,null,"",""]
[null,null,null,null,null,null,null,null,"","",null,null,null,null,null,null,"",""]
[null,null,null,null,null,null,null,null,"","",null,null,null,null,null,null,"",""]
[null,null,null,null,null,null,null,null,"","",null,null,null,null,null,null,"",""]
[null,null,null,null,null,null,null,null,"","",null,null,null,null,null,null,"",""]
[null,null,null,null,null,null,null,null,"","",null,null,null,null,null,null,"",""]
[null,null,null,null,null,null,null,null,"","",null,null,null,null,null,null,"",""]
[null,null,null,null,null,null,null,null,"","",null,null,null,null,null,null,"",""]
[null,null,null,null,null,null,null,null,"","",null,null,null,null,null,null,"",""]
[null,null,null,null,null,null,null,null,"","",null,null,null,null,null,null,"",""]
[null,null,null,null,null,null,null,null,"","",null,null,null,null,null,null,"",""]
[null,null,null,null,null,null,null,null,"","",null,null,null,null,null,null,"",""]
[null,null,null,null,null,null,null,null,"","",null,null,null,null,null,null,"",""]
[null,null,null,null,null,null,null,null,"","",null,null,null,null,null,null,"",""]
[null,null,null,null,null,null,null,null,"","",null,null,null,null,null,null,"",""]
[null,null,null,null,null,null,null,null,"","",null,null,null,null,null,null,"",""]
[null,null,null,null,null,null,null,null,"","",null,null,null,null,null,null,"",""]
[null,null,null,null,null,null,null,null,"","",null,null,null,null,null,null,"",""]
[null,null,null,null,null,null,null,null,"","",null,null,null,null,null,null,"",""]
[null,null,null,null,null,null,null,null,"","",null,null,null,null,null,null,"",""]
[null,null,null,null,null,null,null,null,"","",null,null,null,null,null,null,"",""]
[null,null,null,null,null,null,null,null,"","",null,null,null,null,null,null,"",""]
[null,null,null,null,null,null,null,null,"","",null,null,null,null,null,null,"",""]
[null,null,null,null,null,null,null,null,"","",null,null,null,null,null,null,"",""]
[null,null,null,null,null,null,null,null,"","",null,null,null,null,null,null,"",""]
[null,null,null,null,null,null,null,null,"","",null,null,null,null,null,null,"",""]
[null,null,null,null,null,null,null,null,"","",null,null,null,null,null,null,"",""]
[null,null,null,null,null,null,null,null,"","",null,null,null,null,null,null,"",""]
[null,null,null,null,null,null,null,null,"","",null,null,null,null,null,null,"",""]
[null,null,null,null,null,null,null,null,"","",null,null,null,null,null,null,"",""]
[null,null,null,null,null,null,null,null,"","",null,null,null,null,null,null,"",""]
[null,null,null,null,null,null,null,null,"","",null,null,null,null,null,null,"",""]
[null,null,null,null,null,null,null,null,"","",null,null,null,null,null,null,"",""]
[null,null,null,null,null,null,null,null,"","",null,null,null,null,null,null,"",""]
[null,null,null,null,null,null,null,null,"","",null,null,null,null,null,null,"",""]
[null,null,null,null,null,null,null,null,"","",null,null,null,null,null,null,"",""]
[null,null,null,null,null,null,null,null,"","",null,null,null,null,null,null,"",""]
[null,null,null,null,null,null,null,null,"","",null,null,null,null,null,null,"",""]
[null,null,null,null,null,null,null,null,"","",null,null,null,null,null,null,"",""]
[null,null,null,null,null,null,null,null,"","",null,null,null,null,null,null,"",""]
[null,null,null,null,null,null,null,null,"","",null,null,null,null,null,null,"",""]
[null,null,null,null,null,null,null,null,"","",null,null,null,null,null,null,"",""]
[null,null,null,null,null,null,null,null,{"$f":"IF(H618<>\"\",H618+F618,\"\")","v":""},"",null,null,null,null,null,null,{"$f":"IF(P618<>\"\",P618+F618,\"\")","v":""},""]
[null,null,null,null,null,null,null,null,"","",null,null,null,null,null,null,"",""]
[null,null,null,null,null,null,null,null,"","",null,null,null,null,null,null,"",""]
[null,null,null,null,null,null,null,null,"","",null,null,null,null,null,null,"",""]
[null,null,null,null,null,null,null,null,"",{"$f":"IF(I622=\"\",\"\",IF(AND(DAYS360(TODAY(),I622)<16,DAYS360(TODAY(),I622)>0),\"EXPIRANDO\",IF(DAYS360(TODAY(),I622)>15,\"VIGENTE\",IF(OR(DAYS360(TODAY(),I622)=0,DAYS360(TODAY(),I622)<0),\"EXPIRADO\"))))","v":""},null,null,null,null,null,null,"",{"$f":"IF(Q622=\"\",\"\",IF(T622<>\"\",\"---->\",IF(AND(DAYS360(TODAY(),Q622)<16,DAYS360(TODAY(),Q622)>0),\"EXPIRANDO\",IF(DAYS360(TODAY(),Q622)>15,\"VIGENTE\",IF(OR(DAYS360(TODAY(),Q622)=0,DAYS360(TODAY(),Q622)<0),\"EXPIRADO\")))))","v":""}]
[null,null,null,null,null,null,null,null,"","",null,null,null,null,null,null,"",""]
[null,null,null,null,null,null,null,null,"","",null,null,null,null,null,null,"",""]
[null,null,null,null,null,null,null,null,"","",null,null,null,null,null,null,"",""]
[null,null,null,null,null,null,null,null,"","",null,null,null,null,null,null,"",""]
[null,null,null,null,null,null,null,null,"","",null,null,null,null,null,null,"",""]
[null,null,null,null,null,null,null,null,"","",null,null,null,null,null,null,"",""]
[null,null,null,null,null,null,null,null,"","",null,null,null,null,null,null,"",""]
[null,null,null,null,null,null,null,null,"","",null,null,null,null,null,null,"",""]
[null,null,null,null,null,null,null,null,"","",null,null,null,null,null,null,"",""]
[null,null,null,null,null,null,null,null,"","",null,null,null,null,null,null,"",""]
[null,null,null,null,null,null,null,null,"","",null,null,null,null,null,null,"",""]
[null,null,null,null,null,null,null,null,"","",null,null,null,null,null,null,"",""]
[null,null,null,null,null,null,null,null,"","",null,null,null,null,null,null,"",""]
[null,null,null,null,null,null,null,null,"","",null,null,null,null,null,null,"",""]
[null,null,null,null,null,null,null,null,"","",null,null,null,null,null,null,"",""]
[null,null,null,null,null,null,null,null,"","",null,null,null,null,null,null,"",""]
[null,null,null,null,null,null,null,null,"","",null,null,null,null,null,null,"",""]
[null,null,null,null,null,null,null,null,"","",null,null,null,null,null,null,"",""]
[null,null,null,null,null,null,null,null,"","",null,null,null,null,null,null,"",""]
[null,null,null,null,null,null,null,null,"","",null,null,null,null,null,null,"",""]
[null,null,null,null,null,null,null,null,"","",null,null,null,null,null,null,"",""]
[null,null,null,null,null,null,null,null,"","",null,null,null,null,null,null,"",""]
[null,null,null,null,null,null,null,null,"","",null,null,null,null,null,null,"",""]
[null,null,null,null,null,null,null,null,"","",null,null,null,null,null,null,"",""]
[null,null,null,null,null,null,null,null,"","",null,null,null,null,null,null,"",""]
[null,null,null,null,null,null,null,null,"","",null,null,null,null,null,null,"",""]
[null,null,null,null,null,null,null,null,"","",null,null,null,null,null,null,"",""]
[null,null,null,null,null,null,null,null,"","",null,null,null,null,null,null,"",""]
[null,null,null,null,null,null,null,null,"","",null,null,null,null,null,null,"",""]
[null,null,null,null,null,null,null,null,"","",null,null,null,null,null,null,"",""]
[null,null,null,null,null,null,null,null,"","",null,null,null,null,null,null,"",""]
[null,null,null,null,null,null,null,null,"","",null,null,null,null,null,null,"",""]
[null,null,null,null,null,null,null,null,"","",null,null,null,null,null,null,"",""]
[null,null,null,null,null,null,null,null,"","",null,null,null,null,null,null,"",""]
[null,null,null,null,null,null,null,null,"","",null,null,null,null,null,null,"",""]
[null,null,null,null,null,null,null,null,"","",null,null,null,null,null,null,"",""]
[null,null,null,null,null,null,null,null,"","",null,null,null,null,null,null,"",""]
[null,null,null,null,null,null,null,null,"","",null,null,null,null,null,null,"",""]
[null,null,null,null,null,null,null,null,"","",null,null,null,null,null,null,"",""]
[null,null,null,null,null,null,null,null,"","",null,null,null,null,null,null,"",""]
[null,null,null,null,null,null,null,null,"","",null,null,null,null,null,null,"",""]
[null,null,null,null,null,null,null,null,"","",null,null,null,null,null,null,"",""]
[null,null,null,null,null,null,null,null,"","",null,null,null,null,null,null,"",""]
[null,null,null,null,null,null,null,null,"","",null,null,null,null,null,null,"",""]
[null,null,null,null,null,null,null,null,"","",null,null,null,null,null,null,"",""]
[null,null,null,null,null,null,null,null,"","",null,null,null,null,null,null,"",""]
[null,null,null,null,null,null,null,null,"","",null,null,null,null,null,null,"",""]
[null,null,null,null,null,null,null,null,"","",null,null,null,null,null,null,"",""]
[null,null,null,null,null,null,null,null,"","",null,null,null,null,null,null,"",""]
[null,null,null,null,null,null,null,null,"","",null,null,null,null,null,null,"",""]
[null,null,null,null,null,null,null,null,"","",null,null,null,null,null,null,"",""]
[null,null,null,null,null,null,null,null,"","",null,null,null,null,null,null,"",""]
[null,null,null,null,null,null,null,null,"","",null,null,null,null,null,null,"",""]
[null,null,null,null,null,null,null,null,"","",null,null,null,null,null,null,"",""]
[null,null,null,null,null,null,null,null,"","",null,null,null,null,null,null,"",""]
[null,null,null,null,null,null,null,null,"","",null,null,null,null,null,null,"",""]
[null,null,null,null,null,null,null,null,"","",null,null,null,null,null,null,"",""]
[null,null,null,null,null,null,null,null,"","",null,null,null,null,null,null,"",""]
[null,null,null,null,null,null,null,null,"","",null,null,null,null,null,null,"",""]
[null,null,null,null,null,null,null,null,{"$f":"IF(H682<>\"\",H682+F682,\"\")","v":""},"",null,null,null,null,null,null,{"$f":"IF(P682<>\"\",P682+F682,\"\")","v":""},""]
[null,null,null,null,null,null,null,null,"","",null,null,null,null,null,null,"",""]
[null,null,null,null,null,null,null,null,"","",null,null,null,null,null,null,"",""]
[null,null,null,null,null,null,null,null,"","",null,null,null,null,null,null,"",""]
[null,null,null,null,null,null,null,null,"",{"$f":"IF(I686=\"\",\"\",IF(AND(DAYS360(TODAY(),I686)<16,DAYS360(TODAY(),I686)>0),\"EXPIRANDO\",IF(DAYS360(TODAY(),I686)>15,\"VIGENTE\",IF(OR(DAYS360(TODAY(),I686)=0,DAYS360(TODAY(),I686)<0),\"EXPIRADO\"))))","v":""},null,null,null,null,null,null,"",{"$f":"IF(Q686=\"\",\"\",IF(T686<>\"\",\"---->\",IF(AND(DAYS360(TODAY(),Q686)<16,DAYS360(TODAY(),Q686)>0),\"EXPIRANDO\",IF(DAYS360(TODAY(),Q686)>15,\"VIGENTE\",IF(OR(DAYS360(TODAY(),Q686)=0,DAYS360(TODAY(),Q686)<0),\"EXPIRADO\")))))","v":""}]
[null,null,null,null,null,null,null,null,"","",null,null,null,null,null,null,"",""]
[null,null,null,null,null,null,null,null,"","",null,null,null,null,null,null,"",""]
[null,null,null,null,null,null,null,null,"","",null,null,null,null,null,null,"",""]
[null,null,null,null,null,null,null,null,"","",null,null,null,null,null,null,"",""]
[null,null,null,null,null,null,null,null,"","",null,null,null,null,null,null,"",""]
[null,null,null,null,null,null,null,null,"","",null,null,null,null,null,null,"",""]
[null,null,null,null,null,null,null,null,"","",null,null,null,null,null,null,"",""]
[null,null,null,null,null,null,null,null,"","",null,null,null,null,null,null,"",""]
[null,null,null,null,null,null,null,null,"","",null,null,null,null,null,null,"",""]
[null,null,null,null,null,null,null,null,"","",null,null,null,null,null,null,"",""]
[null,null,null,null,null,null,null,null,"","",null,null,null,null,null,null,"",""]
[null,null,null,null,null,null,null,null,"","",null,null,null,null,null,null,"",""]
[null,null,null,null,null,null,null,null,"","",null,null,null,null,null,null,"",""]
[null,null,null,null,null,null,null,null,"","",null,null,null,null,null,null,"",""]
[null,null,null,null,null,null,null,null,"","",null,null,null,null,null,null,"",""]
[null,null,null,null,null,null,null,null,"","",null,null,null,null,null,null,"",""]
[null,null,null,null,null,null,null,null,"","",null,null,null,null,null,null,"",""]
[null,null,null,null,null,null,null,null,"","",null,null,null,null,null,null,"",""]
[null,null,null,null,null,null,null,null,"","",null,null,null,null,null,null,"",""]
[null,null,null,null,null,null,null,null,"","",null,null,null,null,null,null,"",""]
[null,null,null,null,null,null,null,null,"","",null,null,null,null,null,null,"",""]
[null,null,null,null,null,null,null,null,"","",null,null,null,null,null,null,"",""]
[null,null,null,null,null,null,null,null,"","",null,null,null,null,null,null,"",""]
[null,null,null,null,null,null,null,null,"","",null,null,null,null,null,null,"",""]
[null,null,null,null,null,null,null,null,"","",null,null,null,null,null,null,"",""]
[null,null,null,null,null,null,null,null,"","",null,null,null,null,null,null,"",""]
[null,null,null,null,null,null,null,null,"","",null,null,null,null,null,null,"",""]
[null,null,null,null,null,null,null,null,"","",null,null,null,null,null,null,"",""]
[null,null,null,null,null,null,null,null,"","",null,null,null,null,null,null,"",""]
[null,null,null,null,null,null,null,null,"","",null,null,null,null,null,null,"",""]
[null,null,null,null,null,null,null,null,"","",null,null,null,null,null,null,"",""]
[null,null,null,null,null,null,null,null,"","",null,null,null,null,null,null,"",""]
[null,null,null,null,null,null,null,null,"","",null,null,null,null,null,null,"",""]
[null,null,null,null,null,null,null,null,"","",null,null,null,null,null,null,"",""]
[null,null,null,null,null,null,null,null,"","",null,null,null,null,null,null,"",""]
[null,null,null,null,null,null,null,null,"","",null,null,null,null,null,null,"",""]
[null,null,null,null,null,null,null,null,"","",null,null,null,null,null,null,"",""]
[null,null,null,null,null,null,null,null,"","",null,null,null,null,null,null,"",""]
[null,null,null,null,null,null,null,null,"","",null,null,null,null,null,null,"",""]
[null,null,null,null,null,null,null,null,"","",null,null,null,null,null,null,"",""]
[null,null,null,null,null,null,null,null,"","",null,null,null,null,null,null,"",""]
[null,null,null,null,null,null,null,null,"","",null,null,null,null,null,null,"",""]
[null,null,null,null,null,null,null,null,"","",null,null,null,null,null,null,"",""]
[null,null,null,null,null,null,null,null,"","",null,null,null,null,null,null,"",""]
[null,null,null,null,null,null,null,null,"","",null,null,null,null,null,null,"",""]
[null,null,null,null,null,null,null,null,"","",null,null,null,null,null,null,"",""]
[null,null,null,null,null,null,null,null,"","",null,null,null,null,null,null,"",""]
[null,null,null,null,null,null,null,null,"","",null,null,null,null,null,null,"",""]
[null,null,null,null,null,null,null,null,"","",null,null,null,null,null,null,"",""]
[null,null,null,null,null,null,null,null,"","",null,null,null,null,null,null,"",""]
[null,null,null,null,null,null,null,null,"","",null,null,null,null,null,null,"",""]
[null,null,null,null,null,null,null,null,"","",null,null,null,null,null,null,"",""]
[null,null,null,null,null,null,null,null,"","",null,null,null,null,null,null,"",""]
[null,null,null,null,null,null,null,null,"","",null,null,null,null,null,null,"",""]
[null,null,null,null,null,null,null,null,"","",null,null,null,null,null,null,"",""]
[null,null,null,null,null,null,null,null,"","",null,null,null,null,null,null,"",""]
[null,null,null,null,null,null,null,null,"","",null,null,null,null,null,null,"",""]
[null,null,null,null,null,null,null,null,"","",null,null,null,null,null,null,"",""]
[null,null,null,null,null,null,null,null,"","",null,null,null,null,null,null,"",""]
[null,null,null,null,null,null,null,null,{"$f":"IF(H746<>\"\",H746+F746,\"\")","v":""},"",null,null,null,null,null,null,{"$f":"IF(P746<>\"\",P746+F746,\"\")","v":""},""]
[null,null,null,null,null,null,null,null,"","",null,null,null,null,null,null,"",""]
[null,null,null,null,null,null,null,null,"","",null,null,null,null,null,null,"",""]
[null,null,null,null,null,null,null,null,"","",null,null,null,null,null,null,"",""]
[null,null,null,null,null,null,null,null,"",{"$f":"IF(I750=\"\",\"\",IF(AND(DAYS360(TODAY(),I750)<16,DAYS360(TODAY(),I750)>0),\"EXPIRANDO\",IF(DAYS360(TODAY(),I750)>15,\"VIGENTE\",IF(OR(DAYS360(TODAY(),I750)=0,DAYS360(TODAY(),I750)<0),\"EXPIRADO\"))))","v":""},null,null,null,null,null,null,"",{"$f":"IF(Q750=\"\",\"\",IF(T750<>\"\",\"---->\",IF(AND(DAYS360(TODAY(),Q750)<16,DAYS360(TODAY(),Q750)>0),\"EXPIRANDO\",IF(DAYS360(TODAY(),Q750)>15,\"VIGENTE\",IF(OR(DAYS360(TODAY(),Q750)=0,DAYS360(TODAY(),Q750)<0),\"EXPIRADO\")))))","v":""}]
[null,null,null,null,null,null,null,null,"","",null,null,null,null,null,null,"",""]
[null,null,null,null,null,null,null,null,"","",null,null,null,null,null,null,"",""]
[null,null,null,null,null,null,null,null,"","",null,null,null,null,null,null,"",""]
[null,null,null,null,null,null,null,null,"","",null,null,null,null,null,null,"",""]
[null,null,null,null,null,null,null,null,"","",null,null,null,null,null,null,"",""]
[null,null,null,null,null,null,null,null,"","",null,null,null,null,null,null,"",""]
[null,null,null,null,null,null,null,null,"","",null,null,null,null,null,null,"",""]
[null,null,null,null,null,null,null,null,"","",null,null,null,null,null,null,"",""]
[null,null,null,null,null,null,null,null,"","",null,null,null,null,null,null,"",""]
[null,null,null,null,null,null,null,null,"","",null,null,null,null,null,null,"",""]
[null,null,null,null,null,null,null,null,"","",null,null,null,null,null,null,"",""]
[null,null,null,null,null,null,null,null,"","",null,null,null,null,null,null,"",""]
[null,null,null,null,null,null,null,null,"","",null,null,null,null,null,null,"",""]
[null,null,null,null,null,null,null,null,"","",null,null,null,null,null,null,"",""]
[null,null,null,null,null,null,null,null,"","",null,null,null,null,null,null,"",""]
[null,null,null,null,null,null,null,null,"","",null,null,null,null,null,null,"",""]
[null,null,null,null,null,null,null,null,"","",null,null,null,null,null,null,"",""]
[null,null,null,null,null,null,null,null,"","",null,null,null,null,null,null,"",""]
[null,null,null,null,null,null,null,null,"","",null,null,null,null,null,null,"",""]
[null,null,null,null,null,null,null,null,"","",null,null,null,null,null,null,"",""]
[null,null,null,null,null,null,null,null,"","",null,null,null,null,null,null,"",""]
[null,null,null,null,null,null,null,null,"","",null,null,null,null,null,null,"",""]
[null,null,null,null,null,null,null,null,"","",null,null,null,null,null,null,"",""]
[null,null,null,null,null,null,null,null,"","",null,null,null,null,null,null,"",""]
[null,null,null,null,null,null,null,null,"","",null,null,null,null,null,null,"",""]
[null,null,null,null,null,null,null,null,"","",null,null,null,null,null,null,"",""]
[null,null,null,null,null,null,null,null,"","",null,null,null,null,null,null,"",""]
[null,null,null,null,null,null,null,null,"","",null,null,null,null,null,null,"",""]
[null,null,null,null,null,null,null,null,"","",null,null,null,null,null,null,"",""]
[null,null,null,null,null,null,null,null,"","",null,null,null,null,null,null,"",""]
[null,null,null,null,null,null,null,null,"","",null,null,null,null,null,null,"",""]
[null,null,null,null,null,null,null,null,"","",null,null,null,null,null,null,"",""]
[null,null,null,null,null,null,null,null,"","",null,null,null,null,null,null,"",""]
[null,null,null,null,null,null,null,null,"","",null,null,null,null,null,null,"",""]
[null,null,null,null,null,null,null,null,"","",null,null,null,null,null,null,"",""]
[null,null,null,null,null,null,null,null,"","",null,null,null,null,null,null,"",""]
[null,null,null,null,null,null,null,null,"","",null,null,null,null,null,null,"",""]
[null,null,null,null,null,null,null,null,"","",null,null,null,null,null,null,"",""]
[null,null,null,null,null,null,null,null,"","",null,null,null,null,null,null,"",""]
[null,null,null,null,null,null,null,null,"","",null,null,null,null,null,null,"",""]
[null,null,null,null,null,null,null,null,"","",null,null,null,null,null,null,"",""]
[null,null,null,null,null,null,null,null,"","",null,null,null,null,null,null,"",""]
[null,null,null,null,null,null,null,null,"","",null,null,null,null,null,null,"",""]
[null,null,null,null,null,null,null,null,"","",null,null,null,null,null,null,"",""]
[null,null,null,null,null,null,null,null,"","",null,null,null,null,null,null,"",""]
[null,null,null,null,null,null,null,null,"","",null,null,null,null,null,null,"",""]
[null,null,null,null,null,null,null,null,"","",null,null,null,null,null,null,"",""]
[null,null,null,null,null,null,null,null,"","",null,null,null,null,null,null,"",""]
[null,null,null,null,null,null,null,null,"","",null,null,null,null,null,null,"",""]
[null,null,null,null,null,null,null,null,"","",null,null,null,null,null,null,"",""]
[null,null,null,null,null,null,null,null,"","",null,null,null,null,null,null,"",""]
[null,null,null,null,null,null,null,null,"","",null,null,null,null,null,null,"",""]
[null,null,null,null,null,null,null,null,"","",null,null,null,null,null,null,"",""]
[null,null,null,null,null,null,null,null,"","",null,null,null,null,null,null,"",""]
[null,null,null,null,null,null,null,null,"","",null,null,null,null,null,null,"",""]
[null,null,null,null,null,null,null,null,"","",null,null,null,null,null,null,"",""]
[null,null,null,null,null,null,null,null,"","",null,null,null,null,null,null,"",""]
[null,null,null,null,null,null,null,null,"","",null,null,null,null,null,null,"",""]
[null,null,null,null,null,null,null,null,"","",null,null,null,null,null,null,"",""]
[null,null,null,null,null,null,null,null,{"$f":"IF(H810<>\"\",H810+F810,\"\")","v":""},"",null,null,null,null,null,null,{"$f":"IF(P810<>\"\",P810+F810,\"\")","v":""},""]
[null,null,null,null,null,null,null,null,"","",null,null,null,null,null,null,"",""]
[null,null,null,null,null,null,null,null,"","",null,null,null,null,null,null,"",""]
[null,null,null,null,null,null,null,null,"","",null,null,null,null,null,null,"",""]
[null,null,null,null,null,null,null,null,"",{"$f":"IF(I814=\"\",\"\",IF(AND(DAYS360(TODAY(),I814)<16,DAYS360(TODAY(),I814)>0),\"EXPIRANDO\",IF(DAYS360(TODAY(),I814)>15,\"VIGENTE\",IF(OR(DAYS360(TODAY(),I814)=0,DAYS360(TODAY(),I814)<0),\"EXPIRADO\"))))","v":""},null,null,null,null,null,null,"",{"$f":"IF(Q814=\"\",\"\",IF(T814<>\"\",\"---->\",IF(AND(DAYS360(TODAY(),Q814)<16,DAYS360(TODAY(),Q814)>0),\"EXPIRANDO\",IF(DAYS360(TODAY(),Q814)>15,\"VIGENTE\",IF(OR(DAYS360(TODAY(),Q814)=0,DAYS360(TODAY(),Q814)<0),\"EXPIRADO\")))))","v":""}]
[null,null,null,null,null,null,null,null,"","",null,null,null,null,null,null,"",""]
[null,null,null,null,null,null,null,null,"","",null,null,null,null,null,null,"",""]
[null,null,null,null,null,null,null,null,"","",null,null,null,null,null,null,"",""]
[null,null,null,null,null,null,null,null,"","",null,null,null,null,null,null,"",""]
[null,null,null,null,null,null,null,null,"","",null,null,null,null,null,null,"",""]
[null,null,null,null,null,null,null,null,"","",null,null,null,null,null,null,"",""]
[null,null,null,null,null,null,null,null,"","",null,null,null,null,null,null,"",""]
[null,null,null,null,null,null,null,null,"","",null,null,null,null,null,null,"",""]
[null,null,null,null,null,null,null,null,"","",null,null,null,null,null,null,"",""]
[null,null,null,null,null,null,null,null,"","",null,null,null,null,null,null,"",""]
[null,null,null,null,null,null,null,null,"","",null,null,null,null,null,null,"",""]
[null,null,null,null,null,null,null,null,"","",null,null,null,null,null,null,"",""]
[null,null,null,null,null,null,null,null,"","",null,null,null,null,null,null,"",""]
[null,null,null,null,null,null,null,null,"","",null,null,null,null,null,null,"",""]
[null,null,null,null,null,null,null,null,"","",null,null,null,null,null,null,"",""]
[null,null,null,null,null,null,null,null,"","",null,null,null,null,null,null,"",""]
[null,null,null,null,null,null,null,null,"","",null,null,null,null,null,null,"",""]
[null,null,null,null,null,null,null,null,"","",null,null,null,null,null,null,"",""]
[null,null,null,null,null,null,null,null,"","",null,null,null,null,null,null,"",""]
[null,null,null,null,null,null,null,null,"","",null,null,null,null,null,null,"",""]
[null,null,null,null,null,null,null,null,"","",null,null,null,null,null,null,"",""]
[null,null,null,null,null,null,null,null,"","",null,null,null,null,null,null,"",""]
[null,null,null,null,null,null,null,null,"","",null,null,null,null,null,null,"",""]
[null,null,null,null,null,null,null,null,"","",null,null,null,null,null,null,"",""]
[null,null,null,null,null,null,null,null,"","",null,null,null,null,null,null,"",""]
[null,null,null,null,null,null,null,null,"","",null,null,null,null,null,null,"",""]
[null,null,null,null,null,null,null,null,"","",null,null,null,null,null,null,"",""]
[null,null,null,null,null,null,null,null,"","",null,null,null,null,null,null,"",""]
[null,null,null,null,null,null,null,null,"","",null,null,null,null,null,null,"",""]
[null,null,null,null,null,null,null,null,"","",null,null,null,null,null,null,"",""]
[null,null,null,null,null,null,null,null,"","",null,null,null,null,null,null,"",""]
[null,null,null,null,null,null,null,null,"","",null,null,null,null,null,null,"",""]
[null,null,null,null,null,null,null,null,"","",null,null,null,null,null,null,"",""]
[null,null,null,null,null,null,null,null,"","",null,null,null,null,null,null,"",""]
[null,null,null,null,null,null,null,null,"","",null,null,null,null,null,null,"",""]
[null,null,null,null,null,null,null,null,"","",null,null,null,null,null,null,"",""]
[null,null,null,null,null,null,null,null,"","",null,null,null,null,null,null,"",""]
[null,null,null,null,null,null,null,null,"","",null,null,null,null,null,null,"",""]
[null,null,null,null,null,null,null,null,"","",null,null,null,null,null,null,"",""]
[null,null,null,null,null,null,null,null,"","",null,null,null,null,null,null,"",""]
[null,null,null,null,null,null,null,null,"","",null,null,null,null,null,null,"",""]
[null,null,null,null,null,null,null,null,"","",null,null,null,null,null,null,"",""]
[null,null,null,null,null,null,null,null,"","",null,null,null,null,null,null,"",""]
[null,null,null,null,null,null,null,null,"","",null,null,null,null,null,null,"",""]
[null,null,null,null,null,null,null,null,"","",null,null,null,null,null,null,"",""]
[null,null,null,null,null,null,null,null,"","",null,null,null,null,null,null,"",""]
[null,null,null,null,null,null,null,null,"","",null,null,null,null,null,null,"",""]
[null,null,null,null,null,null,null,null,"","",null,null,null,null,null,null,"",""]
[null,null,null,null,null,null,null,null,"","",null,null,null,null,null,null,"",""]
[null,null,null,null,null,null,null,null,"","",null,null,null,null,null,null,"",""]
[null,null,null,null,null,null,null,null,"","",null,null,null,null,null,null,"",""]
[null,null,null,null,null,null,null,null,"","",null,null,null,null,null,null,"",""]
[null,null,null,null,null,null,null,null,"","",null,null,null,null,null,null,"",""]
[null,null,null,null,null,null,null,null,"","",null,null,null,null,null,null,"",""]
[null,null,null,null,null,null,null,null,"","",null,null,null,null,null,null,"",""]
[null,null,null,null,null,null,null,null,"","",null,null,null,null,null,null,"",""]
[null,null,null,null,null,null,null,null,"","",null,null,null,null,null,null,"",""]
[null,null,null,null,null,null,null,null,"","",null,null,null,null,null,null,"",""]
[null,null,null,null,null,null,null,null,"","",null,null,null,null,null,null,"",""]
[null,null,null,null,null,null,null,null,{"$f":"IF(H874<>\"\",H874+F874,\"\")","v":""},"",null,null,null,null,null,null,{"$f":"IF(P874<>\"\",P874+F874,\"\")","v":""},""]
[null,null,null,null,null,null,null,null,"","",null,null,null,null,null,null,"",""]
[null,null,null,null,null,null,null,null,"","",null,null,null,null,null,null,"",""]
[null,null,null,null,null,null,null,null,"","",null,null,null,null,null,null,"",""]
[null,null,null,null,null,null,null,null,"",{"$f":"IF(I878=\"\",\"\",IF(AND(DAYS360(TODAY(),I878)<16,DAYS360(TODAY(),I878)>0),\"EXPIRANDO\",IF(DAYS360(TODAY(),I878)>15,\"VIGENTE\",IF(OR(DAYS360(TODAY(),I878)=0,DAYS360(TODAY(),I878)<0),\"EXPIRADO\"))))","v":""},null,null,null,null,null,null,"",{"$f":"IF(Q878=\"\",\"\",IF(T878<>\"\",\"---->\",IF(AND(DAYS360(TODAY(),Q878)<16,DAYS360(TODAY(),Q878)>0),\"EXPIRANDO\",IF(DAYS360(TODAY(),Q878)>15,\"VIGENTE\",IF(OR(DAYS360(TODAY(),Q878)=0,DAYS360(TODAY(),Q878)<0),\"EXPIRADO\")))))","v":""}]
[null,null,null,null,null,null,null,null,"","",null,null,null,null,null,null,"",""]
[null,null,null,null,null,null,null,null,"","",null,null,null,null,null,null,"",""]
[null,null,null,null,null,null,null,null,"","",null,null,null,null,null,null,"",""]
[null,null,null,null,null,null,null,null,"","",null,null,null,null,null,null,"",""]
[null,null,null,null,null,null,null,null,"","",null,null,null,null,null,null,"",""]
[null,null,null,null,null,null,null,null,"","",null,null,null,null,null,null,"",""]
[null,null,null,null,null,null,null,null,"","",null,null,null,null,null,null,"",""]
[null,null,null,null,null,null,null,null,"","",null,null,null,null,null,null,"",""]
[null,null,null,null,null,null,null,null,"","",null,null,null,null,null,null,"",""]
[null,null,null,null,null,null,null,null,"","",null,null,null,null,null,null,"",""]
[null,null,null,null,null,null,null,null,"","",null,null,null,null,null,null,"",""]
[null,null,null,null,null,null,null,null,"","",null,null,null,null,null,null,"",""]
[null,null,null,null,null,null,null,null,"","",null,null,null,null,null,null,"",""]
[null,null,null,null,null,null,null,null,"","",null,null,null,null,null,null,"",""]
[null,null,null,null,null,null,null,null,"","",null,null,null,null,null,null,"",""]
[null,null,null,null,null,null,null,null,"","",null,null,null,null,null,null,"",""]
[null,null,null,null,null,null,null,null,"","",null,null,null,null,null,null,"",""]
[null,null,null,null,null,null,null,null,"","",null,null,null,null,null,null,"",""]
[null,null,null,null,null,null,null,null,"","",null,null,null,null,null,null,"",""]
[null,null,null,null,null,null,null,null,"","",null,null,null,null,null,null,"",""]
[null,null,null,null,null,null,null,null,"","",null,null,null,null,null,null,"",""]
[null,null,null,null,null,null,null,null,"","",null,null,null,null,null,null,"",""]
[null,null,null,null,null,null,null,null,"","",null,null,null,null,null,null,"",""]
[null,null,null,null,null,null,null,null,"","",null,null,null,null,null,null,"",""]
[null,null,null,null,null,null,null,null,"","",null,null,null,null,null,null,"",""]
[null,null,null,null,null,null,null,null,"","",null,null,null,null,null,null,"",""]
[null,null,null,null,null,null,null,null,"","",null,null,null,null,null,null,"",""]
[null,null,null,null,null,null,null,null,"","",null,null,null,null,null,null,"",""]
[null,null,null,null,null,null,null,null,"","",null,null,null,null,null,null,"",""]
[null,null,null,null,null,null,null,null,"","",null,null,null,null,null,null,"",""]
[null,null,null,null,null,null,null,null,"","",null,null,null,null,null,null,"",""]
[null,null,null,null,null,null,null,null,"","",null,null,null,null,null,null,"",""]
[null,null,null,null,null,null,null,null,"","",null,null,null,null,null,null,"",""]
[null,null,null,null,null,null,null,null,"","",null,null,null,null,null,null,"",""]
[null,null,null,null,null,null,null,null,"","",null,null,null,null,null,null,"",""]
[null,null,null,null,null,null,null,null,"","",null,null,null,null,null,null,"",""]
[null,null,null,null,null,null,null,null,"","",null,null,null,null,null,null,"",""]
[null,null,null,null,null,null,null,null,"","",null,null,null,null,null,null,"",""]
[null,null,null,null,null,null,null,null,"","",null,null,null,null,null,null,"",""]
[null,null,null,null,null,null,null,null,"","",null,null,null,null,null,null,"",""]
[null,null,null,null,null,null,null,null,"","",null,null,null,null,null,null,"",""]
[null,null,null,null,null,null,null,null,"","",null,null,null,null,null,null,"",""]
[null,null,null,null,null,null,null,null,"","",null,null,null,null,null,null,"",""]
[null,null,null,null,null,null,null,null,"","",null,null,null,null,null,null,"",""]
[null,null,null,null,null,null,null,null,"","",null,null,null,null,null,null,"",""]
[null,null,null,null,null,null,null,null,"","",null,null,null,null,null,null,"",""]
[null,null,null,null,null,null,null,null,"","",null,null,null,null,null,null,"",""]
[null,null,null,null,null,null,null,null,"","",null,null,null,null,null,null,"",""]
[null,null,null,null,null,null,null,null,"","",null,null,null,null,null,null,"",""]
[null,null,null,null,null,null,null,null,"","",null,null,null,null,null,null,"",""]
[null,null,null,null,null,null,null,null,"","",null,null,null,null,null,null,"",""]
[null,null,null,null,null,null,null,null,"","",null,null,null,null,null,null,"",""]
[null,null,null,null,null,null,null,null,"","",null,null,null,null,null,null,"",""]
[null,null,null,null,null,null,null,null,"","",null,null,null,null,null,null,"",""]
[null,null,null,null,null,null,null,null,"","",null,null,null,null,null,null,"",""]
[null,null,null,null,null,null,null,null,"","",null,null,null,null,null,null,"",""]
[null,null,null,null,null,null,null,null,"","",null,null,null,null,null,null,"",""]
[null,null,null,null,null,null,null,null,"","",null,null,null,null,null,null,"",""]
[null,null,null,null,null,null,null,null,"","",null,null,null,null,null,null,"",""]
[null,null,null,null,null,null,null,null,{"$f":"IF(H938<>\"\",H938+F938,\"\")","v":""},"",null,null,null,null,null,null,{"$f":"IF(P938<>\"\",P938+F938,\"\")","v":""},""]
[null,null,null,null,null,null,null,null,"","",null,null,null,null,null,null,"",""]
[null,null,null,null,null,null,null,null,"","",null,null,null,null,null,null,"",""]
[null,null,null,null,null,null,null,null,"","",null,null,null,null,null,null,"",""]
[null,null,null,null,null,null,null,null,"",{"$f":"IF(I942=\"\",\"\",IF(AND(DAYS360(TODAY(),I942)<16,DAYS360(TODAY(),I942)>0),\"EXPIRANDO\",IF(DAYS360(TODAY(),I942)>15,\"VIGENTE\",IF(OR(DAYS360(TODAY(),I942)=0,DAYS360(TODAY(),I942)<0),\"EXPIRADO\"))))","v":""},null,null,null,null,null,null,"",{"$f":"IF(Q942=\"\",\"\",IF(T942<>\"\",\"---->\",IF(AND(DAYS360(TODAY(),Q942)<16,DAYS360(TODAY(),Q942)>0),\"EXPIRANDO\",IF(DAYS360(TODAY(),Q942)>15,\"VIGENTE\",IF(OR(DAYS360(TODAY(),Q942)=0,DAYS360(TODAY(),Q942)<0),\"EXPIRADO\")))))","v":""}]
[null,null,null,null,null,null,null,null,"","",null,null,null,null,null,null,"",""]
[null,null,null,null,null,null,null,null,"","",null,null,null,null,null,null,"",""]
[null,null,null,null,null,null,null,null,"","",null,null,null,null,null,null,"",""]
[null,null,null,null,null,null,null,null,"","",null,null,null,null,null,null,"",""]
[null,null,null,null,null,null,null,null,"","",null,null,null,null,null,null,"",""]
[null,null,null,null,null,null,null,null,"","",null,null,null,null,null,null,"",""]
[null,null,null,null,null,null,null,null,"","",null,null,null,null,null,null,"",""]
[null,null,null,null,null,null,null,null,"","",null,null,null,null,null,null,"",""]
[null,null,null,null,null,null,null,null,"","",null,null,null,null,null,null,"",""]
[null,null,null,null,null,null,null,null,"","",null,null,null,null,null,null,"",""]
[null,null,null,null,null,null,null,null,"","",null,null,null,null,null,null,"",""]
[null,null,null,null,null,null,null,null,"","",null,null,null,null,null,null,"",""]
[null,null,null,null,null,null,null,null,"","",null,null,null,null,null,null,"",""]
[null,null,null,null,null,null,null,null,"","",null,null,null,null,null,null,"",""]
[null,null,null,null,null,null,null,null,"","",null,null,null,null,null,null,"",""]
[null,null,null,null,null,null,null,null,"","",null,null,null,null,null,null,"",""]
[null,null,null,null,null,null,null,null,"","",null,null,null,null,null,null,"",""]
[null,null,null,null,null,null,null,null,"","",null,null,null,null,null,null,"",""]
[null,null,null,null,null,null,null,null,"","",null,null,null,null,null,null,"",""]
[null,null,null,null,null,null,null,null,"","",null,null,null,null,null,null,"",""]
[null,null,null,null,null,null,null,null,"","",null,null,null,null,null,null,"",""]
[null,null,null,null,null,null,null,null,"","",null,null,null,null,null,null,"",""]
[null,null,null,null,null,null,null,null,"","",null,null,null,null,null,null,"",""]
[null,null,null,null,null,null,null,null,"","",null,null,null,null,null,null,"",""]
[null,null,null,null,null,null,null,null,"","",null,null,null,null,null,null,"",""]
[null,null,null,null,null,null,null,null,"","",null,null,null,null,null,null,"",""]
[null,null,null,null,null,null,null,null,"","",null,null,null,null,null,null,"",""]
[null,null,null,null,null,null,null,null,"","",null,null,null,null,null,null,"",""]
[null,null,null,null,null,null,null,null,"","",null,null,null,null,null,null,"",""]
[null,null,null,null,null,null,null,null,"","",null,null,null,null,null,null,"",""]
[null,null,null,null,null,null,null,null,"","",null,null,null,null,null,null,"",""]
[null,null,null,null,null,null,null,null,"","",null,null,null,null,null,null,"",""]
[null,null,null,null,null,null,null,null,"","",null,null,null,null,null,null,"",""]
[null,null,null,null,null,null,null,null,"","",null,null,null,null,null,null,"",""]
[null,null,null,null,null,null,null,null,"","",null,null,null,null,null,null,"",""]
[null,null,null,null,null,null,null,null,"","",null,null,null,null,null,null,"",""]
[null,null,null,null,null,null,null,null,"","",null,null,null,null,null,null,"",""]
[null,null,null,null,null,null,null,null,"","",null,null,null,null,null,null,"",""]
[null,null,null,null,null,null,null,null,"","",null,null,null,null,null,null,"",""]
[null,null,null,null,null,null,null,null,"","",null,null,null,null,null,null,"",""]
[null,null,null,null,null,null,null,null,"","",null,null,null,null,null,null,"",""]
[null,null,null,null,null,null,null,null,"","",null,null,null,null,null,null,"",""]
[null,null,null,null,null,null,null,null,"","",null,null,null,null,null,null,"",""]
[null,null,null,null,null,null,null,null,"","",null,null,null,null,null,null,"",""]
[null,null,null,null,null,null,null,null,"","",null,null,null,null,null,null,"",""]
[null,null,null,null,null,null,null,null,"","",null,null,null,null,null,null,"",""]
[null,null,null,null,null,null,null,null,"","",null,null,null,null,null,null,"",""]
[null,null,null,null,null,null,null,null,"","",null,null,null,null,null,null,"",""]
[null,null,null,null,null,null,null,null,"","",null,null,null,null,null,null,"",""]
[null,null,null,null,null,null,null,null,"","",null,null,null,null,null,null,"",""]
[null,null,null,null,null,null,null,null,"","",null,null,null,null,null,null,"",""]
[null,null,null,null,null,null,null,null,"","",null,null,null,null,null,null,"",""]
[null,null,null,null,null,null,null,null,"","",null,null,null,null,null,null,"",""]
[null,null,null,null,null,null,null,null,"","",null,null,null,null,null,null,"",""]
[null,null,null,null,null,null,null,null,"","",null,null,null,null,null,null,"",""]
[null,null,null,null,null,null,null,null,"","",null,null,null,null,null,null,"",""]
[null,null,null,null,null,null,null,null,"","",null,null,null,null,null,null,"",""]
[null,null,null,null,null,null,null,null,"","",null,null,null,null,null,null,"",""]
[null,null,null,null,null,null,null,null,"","",null,null,null,null,null,null,"",""]
[null,null,null,null,null,null,null,null,{"$f":"IF(H1002<>\"\",H1002+F1002,\"\")","v":""},"",null,null,null,null,null,null,{"$f":"IF(P1002<>\"\",P1002+F1002,\"\")","v":""},""]
[null,null,null,null,null,null,null,null,"","",null,null,null,null,null,null,"",""]
[null,null,null,null,null,null,null,null,"","",null,null,null,null,null,null,"",""]
[null,null,null,null,null,null,null,null,"","",null,null,null,null,null,null,"",""]
[null,null,null,null,null,null,null,null,"",{"$f":"IF(I1006=\"\",\"\",IF(AND(DAYS360(TODAY(),I1006)<16,DAYS360(TODAY(),I1006)>0),\"EXPIRANDO\",IF(DAYS360(TODAY(),I1006)>15,\"VIGENTE\",IF(OR(DAYS360(TODAY(),I1006)=0,DAYS360(TODAY(),I1006)<0),\"EXPIRADO\"))))","v":""},null,null,null,null,null,null,"",{"$f":"IF(Q1006=\"\",\"\",IF(T1006<>\"\",\"---->\",IF(AND(DAYS360(TODAY(),Q1006)<16,DAYS360(TODAY(),Q1006)>0),\"EXPIRANDO\",IF(DAYS360(TODAY(),Q1006)>15,\"VIGENTE\",IF(OR(DAYS360(TODAY(),Q1006)=0,DAYS360(TODAY(),Q1006)<0),\"EXPIRADO\")))))","v":""}]
[null,null,null,null,null,null,null,null,"","",null,null,null,null,null,null,"",""]
[null,null,null,null,null,null,null,null,"","",null,null,null,null,null,null,"",""]
[null,null,null,null,null,null,null,null,"","",null,null,null,null,null,null,"",""]
[null,null,null,null,null,null,null,null,"","",null,null,null,null,null,null,"",""]
[null,null,null,null,null,null,null,null,"","",null,null,null,null,null,null,"",""]
[null,null,null,null,null,null,null,null,"","",null,null,null,null,null,null,"",""]
[null,null,null,null,null,null,null,null,"","",null,null,null,null,null,null,"",""]
[null,null,null,null,null,null,null,null,"","",null,null,null,null,null,null,"",""]
[null,null,null,null,null,null,null,null,"","",null,null,null,null,null,null,"",""]
[null,null,null,null,null,null,null,null,"","",null,null,null,null,null,null,"",""]
[null,null,null,null,null,null,null,null,"","",null,null,null,null,null,null,"",""]
[null,null,null,null,null,null,null,null,"","",null,null,null,null,null,null,"",""]
[null,null,null,null,null,null,null,null,"","",null,null,null,null,null,null,"",""]
[null,null,null,null,null,null,null,null,"","",null,null,null,null,null,null,"",""]
[null,null,null,null,null,null,null,null,"","",null,null,null,null,null,null,"",""]
[null,null,null,null,null,null,null,null,"","",null,null,null,null,null,null,"",""]
[null,null,null,null,null,null,null,null,"","",null,null,null,null,null,null,"",""]
[null,null,null,null,null,null,null,null,"","",null,null,null,null,null,null,"",""]
[null,null,null,null,null,null,null,null,"","",null,null,null,null,null,null,"",""]
[null,null,null,null,null,null,null,null,"","",null,null,null,null,null,null,"",""]
[null,null,null,null,null,null,null,null,"","",null,null,null,null,null,null,"",""]
[null,null,null,null,null,null,null,null,"","",null,null,null,null,null,null,"",""]
[null,null,null,null,null,null,null,null,"","",null,null,null,null,null,null,"",""]
[null,null,null,null,null,null,null,null,"","",null,null,null,null,null,null,"",""]
[null,null,null,null,null,null,null,null,"","",null,null,null,null,null,null,"",""]
[null,null,null,null,null,null,null,null,"","",null,null,null,null,null,null,"",""]
[null,null,null,null,null,null,null,null,"","",null,null,null,null,null,null,"",""]
[null,null,null,null,null,null,null,null,"","",null,null,null,null,null,null,"",""]
[null,null,null,null,null,null,null,null,"","",null,null,null,null,null,null,"",""]
[null,null,null,null,null,null,null,null,"","",null,null,null,null,null,null,"",""]
[null,null,null,null,null,null,null,null,"","",null,null,null,null,null,null,"",""]
[null,null,null,null,null,null,null,null,"","",null,null,null,null,null,null,"",""]
[null,null,null,null,null,null,null,null,"","",null,null,null,null,null,null,"",""]
[null,null,null,null,null,null,null,null,"","",null,null,null,null,null,null,"",""]
[null,null,null,null,null,null,null,null,"","",null,null,null,null,null,null,"",""]
[null,null,null,null,null,null,null,null,"","",null,null,null,null,null,null,"",""]
[null,null,null,null,null,null,null,null,"","",null,null,null,null,null,null,"",""]
[null,null,null,null,null,null,null,null,"","",null,null,null,null,null,null,"",""]
[null,null,null,null,null,null,null,null,"","",null,null,null,null,null,null,"",""]
[null,null,null,null,null,null,null,null,"","",null,null,null,null,null,null,"",""]
[null,null,null,null,null,null,null,null,"","",null,null,null,null,null,null,"",""]
[null,null,null,null,null,null,null,null,"","",null,null,null,null,null,null,"",""]
[null,null,null,null,null,null,null,null,"","",null,null,null,null,null,null,"",""]
[null,null,null,null,null,null,null,null,"","",null,null,null,null,null,null,"",""]
[null,null,null,null,null,null,null,null,"","",null,null,null,null,null,null,"",""]
[null,null,null,null,null,null,null,null,"","",null,null,null,null,null,null,"",""]
[null,null,null,null,null,null,null,null,"","",null,null,null,null,null,null,"",""]
[null,null,null,null,null,null,null,null,"","",null,null,null,null,null,null,"",""]
[null,null,null,null,null,null,null,null,"","",null,null,null,null,null,null,"",""]
[null,null,null,null,null,null,null,null,"","",null,null,null,null,null,null,"",""]
[null,null,null,null,null,null,null,null,"","",null,null,null,null,null,null,"",""]
[null,null,null,null,null,null,null,null,"","",null,null,null,null,null,null,"",""]
[null,null,null,null,null,null,null,null,"","",null,null,null,null,null,null,"",""]
[null,null,null,null,null,null,null,null,"","",null,null,null,null,null,null,"",""]
[null,null,null,null,null,null,null,null,"","",null,null,null,null,null,null,"",""]
[null,null,null,null,null,null,null,null,"","",null,null,null,null,null,null,"",""]
[null,null,null,null,null,null,null,null,"","",null,null,null,null,null,null,"",""]
[null,null,null,null,null,null,null,null,"","",null,null,null,null,null,null,"",""]
[null,null,null,null,null,null,null,null,"","",null,null,null,null,null,null,"",""]
[null,null,null,null,null,null,null,null,{"$f":"IF(H1066<>\"\",H1066+F1066,\"\")","v":""},"",null,null,null,null,null,null,{"$f":"IF(P1066<>\"\",P1066+F1066,\"\")","v":""},""]
[null,null,null,null,null,null,null,null,"","",null,null,null,null,null,null,"",""]
[null,null,null,null,null,null,null,null,"","",null,null,null,null,null,null,"",""]
[null,null,null,null,null,null,null,null,"","",null,null,null,null,null,null,"",""]
[null,null,null,null,null,null,null,null,"",{"$f":"IF(I1070=\"\",\"\",IF(AND(DAYS360(TODAY(),I1070)<16,DAYS360(TODAY(),I1070)>0),\"EXPIRANDO\",IF(DAYS360(TODAY(),I1070)>15,\"VIGENTE\",IF(OR(DAYS360(TODAY(),I1070)=0,DAYS360(TODAY(),I1070)<0),\"EXPIRADO\"))))","v":""},null,null,null,null,null,null,"",{"$f":"IF(Q1070=\"\",\"\",IF(T1070<>\"\",\"---->\",IF(AND(DAYS360(TODAY(),Q1070)<16,DAYS360(TODAY(),Q1070)>0),\"EXPIRANDO\",IF(DAYS360(TODAY(),Q1070)>15,\"VIGENTE\",IF(OR(DAYS360(TODAY(),Q1070)=0,DAYS360(TODAY(),Q1070)<0),\"EXPIRADO\")))))","v":""}]
[null,null,null,null,null,null,null,null,"","",null,null,null,null,null,null,"",""]
[null,null,null,null,null,null,null,null,"","",null,null,null,null,null,null,"",""]
[null,null,null,null,null,null,null,null,"","",null,null,null,null,null,null,"",""]
[null,null,null,null,null,null,null,null,"","",null,null,null,null,null,null,"",""]
[null,null,null,null,null,null,null,null,"","",null,null,null,null,null,null,"",""]
[null,null,null,null,null,null,null,null,"","",null,null,null,null,null,null,"",""]
[null,null,null,null,null,null,null,null,"","",null,null,null,null,null,null,"",""]
[null,null,null,null,null,null,null,null,"","",null,null,null,null,null,null,"",""]
[null,null,null,null,null,null,null,null,"","",null,null,null,null,null,null,"",""]
[null,null,null,null,null,null,null,null,"","",null,null,null,null,null,null,"",""]
[null,null,null,null,null,null,null,null,"","",null,null,null,null,null,null,"",""]
[null,null,null,null,null,null,null,null,"","",null,null,null,null,null,null,"",""]
[null,null,null,null,null,null,null,null,"","",null,null,null,null,null,null,"",""]
[null,null,null,null,null,null,null,null,"","",null,null,null,null,null,null,"",""]
[null,null,null,null,null,null,null,null,"","",null,null,null,null,null,null,"",""]
[null,null,null,null,null,null,null,null,"","",null,null,null,null,null,null,"",""]
[null,null,null,null,null,null,null,null,"","",null,null,null,null,null,null,"",""]
[null,null,null,null,null,null,null,null,"","",null,null,null,null,null,null,"",""]
[null,null,null,null,null,null,null,null,"","",null,null,null,null,null,null,"",""]
[null,null,null,null,null,null,null,null,"","",null,null,null,null,null,null,"",""]
[null,null,null,null,null,null,null,null,"","",null,null,null,null,null,null,"",""]
[null,null,null,null,null,null,null,null,"","",null,null,null,null,null,null,"",""]
[null,null,null,null,null,null,null,null,"","",null,null,null,null,null,null,"",""]
[null,null,null,null,null,null,null,null,"","",null,null,null,null,null,null,"",""]
[null,null,null,null,null,null,null,null,"","",null,null,null,null,null,null,"",""]
[null,null,null,null,null,null,null,null,"","",null,null,null,null,null,null,"",""]
[null,null,null,null,null,null,null,null,"","",null,null,null,null,null,null,"",""]
[null,null,null,null,null,null,null,null,"","",null,null,null,null,null,null,"",""]
[null,null,null,null,null,null,null,null,"","",null,null,null,null,null,null,"",""]
[null,null,null,null,null,null,null,null,"","",null,null,null,null,null,null,"",""]
[null,null,null,null,null,null,null,null,"","",null,null,null,null,null,null,"",""]
[null,null,null,null,null,null,null,null,"","",null,null,null,null,null,null,"",""]
[null,null,null,null,null,null,null,null,"","",null,null,null,null,null,null,"",""]
[null,null,null,null,null,null,null,null,"","",null,null,null,null,null,null,"",""]
[null,null,null,null,null,null,null,null,"","",null,null,null,null,null,null,"",""]
[null,null,null,null,null,null,null,null,"","",null,null,null,null,null,null,"",""]
[null,null,null,null,null,null,null,null,"","",null,null,null,null,null,null,"",""]
[null,null,null,null,null,null,null,null,"","",null,null,null,null,null,null,"",""]
[null,null,null,null,null,null,null,null,"","",null,null,null,null,null,null,"",""]
[null,null,null,null,null,null,null,null,"","",null,null,null,null,null,null,"",""]
[null,null,null,null,null,null,null,null,"","",null,null,null,null,null,null,"",""]
[null,null,null,null,null,null,null,null,"","",null,null,null,null,null,null,"",""]
[null,null,null,null,null,null,null,null,"","",null,null,null,null,null,null,"",""]
[null,null,null,null,null,null,null,null,"","",null,null,null,null,null,null,"",""]
[null,null,null,null,null,null,null,null,"","",null,null,null,null,null,null,"",""]
[null,null,null,null,null,null,null,null,"","",null,null,null,null,null,null,"",""]
[null,null,null,null,null,null,null,null,"","",null,null,null,null,null,null,"",""]
[null,null,null,null,null,null,null,null,"","",null,null,null,null,null,null,"",""]
[null,null,null,null,null,null,null,null,"","",null,null,null,null,null,null,"",""]
[null,null,null,null,null,null,null,null,"","",null,null,null,null,null,null,"",""]
[null,null,null,null,null,null,null,null,"","",null,null,null,null,null,null,"",""]
[null,null,null,null,null,null,null,null,"","",null,null,null,null,null,null,"",""]
[null,null,null,null,null,null,null,null,"","",null,null,null,null,null,null,"",""]
[null,null,null,null,null,null,null,null,"","",null,null,null,null,null,null,"",""]
[null,null,null,null,null,null,null,null,"","",null,null,null,null,null,null,"",""]
[null,null,null,null,null,null,null,null,"","",null,null,null,null,null,null,"",""]
[null,null,null,null,null,null,null,null,"","",null,null,null,null,null,null,"",""]
[null,null,null,null,null,null,null,null,"","",null,null,null,null,null,null,"",""]
[null,null,null,null,null,null,null,null,"","",null,null,null,null,null,null,"",""]
[null,null,null,null,null,null,null,null,{"$f":"IF(H1130<>\"\",H1130+F1130,\"\")","v":""},"",null,null,null,null,null,null,{"$f":"IF(P1130<>\"\",P1130+F1130,\"\")","v":""},""]
[null,null,null,null,null,null,null,null,"","",null,null,null,null,null,null,"",""]
[null,null,null,null,null,null,null,null,"","",null,null,null,null,null,null,"",""]
[null,null,null,null,null,null,null,null,"","",null,null,null,null,null,null,"",""]
[null,null,null,null,null,null,null,null,"",{"$f":"IF(I1134=\"\",\"\",IF(AND(DAYS360(TODAY(),I1134)<16,DAYS360(TODAY(),I1134)>0),\"EXPIRANDO\",IF(DAYS360(TODAY(),I1134)>15,\"VIGENTE\",IF(OR(DAYS360(TODAY(),I1134)=0,DAYS360(TODAY(),I1134)<0),\"EXPIRADO\"))))","v":""},null,null,null,null,null,null,"",{"$f":"IF(Q1134=\"\",\"\",IF(T1134<>\"\",\"---->\",IF(AND(DAYS360(TODAY(),Q1134)<16,DAYS360(TODAY(),Q1134)>0),\"EXPIRANDO\",IF(DAYS360(TODAY(),Q1134)>15,\"VIGENTE\",IF(OR(DAYS360(TODAY(),Q1134)=0,DAYS360(TODAY(),Q1134)<0),\"EXPIRADO\")))))","v":""}]
[null,null,null,null,null,null,null,null,"","",null,null,null,null,null,null,"",""]
[null,null,null,null,null,null,null,null,"","",null,null,null,null,null,null,"",""]
[null,null,null,null,null,null,null,null,"","",null,null,null,null,null,null,"",""]
[null,null,null,null,null,null,null,null,"","",null,null,null,null,null,null,"",""]
[null,null,null,null,null,null,null,null,"","",null,null,null,null,null,null,"",""]
[null,null,null,null,null,null,null,null,"","",null,null,null,null,null,null,"",""]
[null,null,null,null,null,null,null,null,"","",null,null,null,null,null,null,"",""]
[null,null,null,null,null,null,null,null,"","",null,null,null,null,null,null,"",""]
[null,null,null,null,null,null,null,null,"","",null,null,null,null,null,null,"",""]
[null,null,null,null,null,null,null,null,"","",null,null,null,null,null,null,"",""]
[null,null,null,null,null,null,null,null,"","",null,null,null,null,null,null,"",""]
[null,null,null,null,null,null,null,null,"","",null,null,null,null,null,null,"",""]
[null,null,null,null,null,null,null,null,"","",null,null,null,null,null,null,"",""]
[null,null,null,null,null,null,null,null,"","",null,null,null,null,null,null,"",""]
[null,null,null,null,null,null,null,null,"","",null,null,null,null,null,null,"",""]
[null,null,null,null,null,null,null,null,"","",null,null,null,null,null,null,"",""]
[null,null,null,null,null,null,null,null,"","",null,null,null,null,null,null,"",""]
[null,null,null,null,null,null,null,null,"","",null,null,null,null,null,null,"",""]
[null,null,null,null,null,null,null,null,"","",null,null,null,null,null,null,"",""]
[null,null,null,null,null,null,null,null,"","",null,null,null,null,null,null,"",""]
[null,null,null,null,null,null,null,null,"","",null,null,null,null,null,null,"",""]
[null,null,null,null,null,null,null,null,"","",null,null,null,null,null,null,"",""]
[null,null,null,null,null,null,null,null,"","",null,null,null,null,null,null,"",""]
[null,null,null,null,null,null,null,null,"","",null,null,null,null,null,null,"",""]
[null,null,null,null,null,null,null,null,"","",null,null,null,null,null,null,"",""]
[null,null,null,null,null,null,null,null,"","",null,null,null,null,null,null,"",""]
[null,null,null,null,null,null,null,null,"","",null,null,null,null,null,null,"",""]
[null,null,null,null,null,null,null,null,"","",null,null,null,null,null,null,"",""]
[null,null,null,null,null,null,null,null,"","",null,null,null,null,null,null,"",""]
[null,null,null,null,null,null,null,null,"","",null,null,null,null,null,null,"",""]
[null,null,null,null,null,null,null,null,"","",null,null,null,null,null,null,"",""]
[null,null,null,null,null,null,null,null,"","",null,null,null,null,null,null,"",""]
[null,null,null,null,null,null,null,null,"","",null,null,null,null,null,null,"",""]
[null,null,null,null,null,null,null,null,"","",null,null,null,null,null,null,"",""]
[null,null,null,null,null,null,null,null,"","",null,null,null,null,null,null,"",""]
[null,null,null,null,null,null,null,null,"","",null,null,null,null,null,null,"",""]
[null,null,null,null,null,null,null,null,"","",null,null,null,null,null,null,"",""]
[null,null,null,null,null,null,null,null,"","",null,null,null,null,null,null,"",""]
[null,null,null,null,null,null,null,null,"","",null,null,null,null,null,null,"",""]
[null,null,null,null,null,null,null,null,"","",null,null,null,null,null,null,"",""]
[null,null,null,null,null,null,null,null,"","",null,null,null,null,null,null,"",""]

{"sheet":"2018","index":2,"n_rows":91,"n_cols":12,"rows_kept":91,"cut":false,"hidden":false,"merged":[[26,0,26,1],[83,0,83,1],[84,0,84,1],[85,0,85,1],[28,0,28,1],[30,0,30,1],[32,0,32,1],[75,0,75,1],[76,0,76,1],[77,0,77,1],[78,0,78,1],[44,0,44,1],[45,0,45,1],[46,0,46,1],[79,0,79,1],[80,0,80,1],[43,0,43,1],[88,0,88,1],[89,0,89,1],[11,0,11,1],[12,0,12,1],[13,0,13,1],[16,0,16,1],[37,0,37,1],[38,0,38,1],[58,0,58,1],[59,0,59,1],[60,0,60,1],[33,0,33,1],[34,0,34,1],[35,0,35,1],[25,0,25,1],[68,0,68,1],[9,0,9,1],[29,0,29,1],[31,0,31,1],[40,0,40,1],[39,0,39,1],[24,0,24,1],[47,0,47,1],[18,0,18,1],[22,0,22,1],[14,0,14,1],[55,0,55,1],[20,0,20,1],[21,0,21,1],[41,0,41,1],[42,0,42,1],[57,0,57,1],[62,0,62,1],[61,0,61,1],[66,0,66,1],[67,0,67,1],[54,0,54,1],[51,0,51,1],[50,0,50,1],[52,0,52,1],[56,0,56,1],[6,0,6,1],[8,0,8,1],[63,0,63,1],[64,0,64,1],[65,0,65,1],[27,0,27,1],[53,0,53,1],[10,0,10,1],[23,0,23,1],[15,0,15,1],[7,0,7,1],[17,0,17,1],[48,0,48,1],[49,0,49,1],[36,0,36,1],[19,0,19,1],[90,0,90,1],[69,0,69,1],[87,0,87,1],[86,0,86,1],[73,0,73,1],[82,0,82,1],[70,0,70,1],[71,0,71,1],[72,0,72,1],[74,0,74,1],[81,0,81,1],[0,12,0,13],[0,0,1,9],[4,3,5,3],[4,0,5,0],[4,2,5,2],[3,6,3,9],[4,8,4,9],[3,0,3,5],[4,6,5,6],[3,11,5,11],[4,10,5,10],[4,7,5,7],[4,5,5,5],[4,4,5,4]]}
["ADITIVOS CONTINUADOS 2024 "]
[]
[]
[null,null,null,null,null,null,"CONTRATO / OS / OF"]
["DATA",null,"OBJETO","ÓRGÃO","VENCEDOR","VR ADTVDO","Nº","ASSINATURA","PRAZOS (DIAS)",null,"VALOR"]
[null,null,null,null,null,null,null,null,"EXECUÇÃO","VIGÊNCIA"]
["Inexig 01/2021",null,"PEGE - GESTÃO ESCOLAR","EDUC","INFATEC COM. E SERV. TEC EIRELE","12 meses","022/2021","2021-02-08","2023-11-23","2024-11-23","268.710,00               20.670,00 mensal ","5º ADITIVO TEMPO"]
["Adesão 002/2021",null,"Iluminação Pública","ADM","W A S EMPREENDIMENTOS E SERVIÇOS EIRELI","12 MESES","18/2021","2021-02-10","2021-12-30","2022-11-21",1216707.76,"1º ADITIVO TEMPO"]
["Adesão 002/2021",null,"Iluminação Pública","ADM","W A S EMPREENDIMENTOS E SERVIÇOS EIRELI","12 MESES","18/2021","2021-02-10","2022-11-21","2023-10-11",1216707.76,"2º ADITIVO TEMPO"]
["Adesão 002/2021",null,"Iluminação Pública","ADM","W A S EMPREENDIMENTOS E SERVIÇOS EIRELI","12 MESES","18/2021","2021-02-10","2023-10-11","2024-10-11",1216707.76,"3º ADITIVO TEMPO"]
["Adesão 002/2021",null,"Iluminação Pública","ADM","W A S EMPREENDIMENTOS E SERVIÇOS EIRELI","12 MESES","18/2021","2021-02-10","2024-10-11","2024-12-31",1216707.76,"3º ADITIVO TEMPO"]
["TP 07/2021",null,"CONTROLE INTERNO","ADM","ATIVA ASSES. E CONSULTORIA CONTABIL LTDA","12 MESES","90/2021","2021-06-16","2021-12-30","2022-07-18","56.000,00                   8.000,00 mensal","1º ADITIVO TEMPO"]
["TP 07/2021",null,"CONTROLE INTERNO","ADM","ATIVA ASSES. E CONSULTORIA CONTABIL LTDA","12 MESES","90/2021","2021-06-16","2022-07-18","2023-02-02","56.000,00                  8.000,00 mensal","2º ADITIVO TEMPO"]
["TP 07/2021",null,"CONTROLE INTERNO","ADM","ATIVA ASSES. E CONSULTORIA CONTABIL LTDA","12 MESES","90/2021","2021-06-16","2023-02-02","2023-08-19","56.000,00 8.000,00 mensal","3º ADITIVO TEMPO"]
["TP 07/2021",null,"CONTROLE INTERNO","ADM","ATIVA ASSES. E CONSULTORIA CONTABIL LTDA","12 MESES","90/2021","2021-06-16","2023-08-18","2024-08-18","56.000,00                  8.000,00 mensal","4º ADITIVO TEMPO"]
["TP 07/2021",null,"CONTROLE INTERNO","ADM","ATIVA ASSES. E CONSULTORIA CONTABIL LTDA","12 MESES","90/2021","2021-06-16","2024-08-18","2025-08-18","56.000,00                     8.000,00 mensal","5º ADITIVO TEMPO"]
["dispensa 2/2022",null,"Sistema do Controle Interno","ADM","BETEL SOLUÇÕES EM TI LTDA","09 MESES","046/2022","2022-03-29","2022-12-30","30/09/223","7.200,00                        800,00 mensais","1º ADITIVO TEMPO"]
["dispensa 2/2022",null,"Sistema do Controle Interno","ADM","BETEL SOLUÇÕES EM TI LTDA","12 MESES","046/2022","2022-03-29","2023-09-29","2024-09-29","7.200,00                        800,00 mensais","2º ADITIVO TEMPO"]
["PE 016/2022",null,"automação judicial","adm","COREPLAN GESTÃO TECNOLOGIA LTDA","12 MESES","124/2022","2023-08-19","2023-08-19","2024-08-19","143.832,00 11.986,00 mensais","1º ADITIVO TEMPO"]
["PE 016/2022",null,"automação judicial","adm","COREPLAN GESTÃO TECNOLOGIA LTDA","12 MESES","124/2022","2023-08-19","2024-08-19","2025-08-19","143.832,00                    11.986,00 mensais","2º ADITIVO TEMPO"]
["TP 03/2021",null,"Assessoria e Consultoria em Licitação","ADM","ABAS ADVOGADOS ASSOCIADOS","284 dias","45/2021","2023-03-22","2021-12-30","2022-10-12","300.000,00                  25.000,00 mensal","1º ADITIVO TEMPO "]
["TP 03/2021",null,"Assessoria e Consultoria em Licitação","ADM","ABAS ADVOGADOS ASSOCIADOS","284 dias","45/2021","2023-03-22","2022-10-12","2023-07-27","300.000,00             25.000,00 mensal","2º ADITIVO TEMPO "]
["TP 03/2021",null,"Assessoria e Consultoria em Licitação","ADM","ABAS ADVOGADOS ASSOCIADOS","12 MESES","45/2021","2023-03-22","2023-07-27","2024-07-27","300.000,00 25.000,00 mensal","3º ADITIVO TEMPO"]
["TP 03/2021",null,"Assessoria e Consultoria em Licitação","ADM","ABAS ADVOGADOS ASSOCIADOS","12 MESES","45/2021","2023-03-22","2024-07-26","2025-07-26","300.000,00             25.000,00 mensal","4º ADITIVO TEMPO"]
["TP 06/2024",null,"Assessoria e Consultoria tributaria ","ADM","C3 CONSULTORIA TRIBUTÁRIA LTDA","09 meses","71/2021","2021-04-05","2021-12-30","2022-09-30","48.000,00 4.000,00 mensal","1º ADITIVO TEMPO "]
["TP 06/2024",null,"Assessoria e Consultoria tributaria ","ADM","C3 CONSULTORIA TRIBUTÁRIA LTDA","09 meses","71/2021","2021-04-05","2022-09-30","2023-06-30","48.000,00                  4.000,00 mensal","2º ADITIVO TEMPO "]
["TP 06/2024",null,"Assessoria e Consultoria tributaria ","ADM","C3 CONSULTORIA TRIBUTÁRIA LTDA","09 meses","71/2021","2021-04-05","2023-06-30","2024-06-30","48.000,00                   4.000,00 mensal","3º ADITIVO TEMPO"]
["TP 06/2024",null,"Assessoria e Consultoria tributaria ","ADM","C3 CONSULTORIA TRIBUTÁRIA LTDA","06 MESES","71/2021","2021-04-05","2024-06-28","2024-12-29","48.000,00 4.000,00 mensal","4º ADITIVO TEMPO"]
["Adesão 010/2021",null,"assessoria em marketing","ADM","A R N BRITO LIMA ME","09 MESES","85/2021","2021-03-31","2021-12-30","2022-09-30","158.000,00                     15.800,00 mensal","1º ADITIVO TEMPO "]
["Adesão 010/2021",null,"assessoria em marketing","ADM","A R N BRITO LIMA ME","09 MESES","85/2021","2021-03-31","2022-09-30","2023-06-30","158.000,00               15.800,00 mensal","1º ADITIVO TEMPO "]
["Adesão 010/2021",null,"assessoria em marketing","ADM","A R N BRITO LIMA ME","09 MESES","85/2021","2021-03-31","2022-09-30","2023-06-30","158.000,00 15.800,00 mensal","2º ADITIVO TEMPO "]
["Adesão 010/2021",null,"assessoria em marketing","ADM","A R N BRITO LIMA ME","12 MESES","85/2021","2021-03-31","2023-06-30","2024-06-30","158.000,00               15.800,00 mensal","3º ADITIVO TEMPO"]
["Adesão 010/2021",null,"assessoria em marketing","ADM","A R N BRITO LIMA ME","12 MESES","85/2021","2021-03-31","2024-06-28","2025-06-28","158.000,00               15.800,00 mensal","4º ADITIVO TEMPO"]
["TP 004/2021",null,"Assesssoria Juridica","ADM","ALMEIDA FERREIRA E GONÇALVES ADVOGADOS","288 DIAS","44/2021","2021-03-18","2021-12-30","2022-10-15","360.000,00 30.000,00 MENSAL","1º ADITIVO TEMPO "]
["TP 004/2021",null,"Assesssoria Juridica","ADM","ALMEIDA FERREIRA E GONÇALVES ADVOGADOS","288 DIAS","44/2021","2021-03-18","2022-10-14","2023-07-28","360.000,00             30.000,00 MENSAL","2º ADITIVO TEMPO "]
["TP 004/2021",null,"Assesssoria Juridica","ADM","ALMEIDA FERREIRA E GONÇALVES ADVOGADOS","288 DIAS","44/2021","2021-03-18","2023-07-28","28/072023","360.000,00 30.000,00 MENSAL","3º ADITIVO TEMPO"]
["TP 004/2021",null,"Assesssoria Juridica","ADM","ALMEIDA FERREIRA E GONÇALVES ADVOGADOS","12 MESES ","44/2021","2021-03-18","2024-07-26","2025-07-26","360.000,00                    30.000,00 MENSAL","4º ADITIVO TEMPO"]
["TP 005/2021",null,"Software da contabilidade","ADM","ASP AUTOM. SERV. E PROD. DE INFORM. LTDA","09 MESES","070/2021","2021-04-05","2021-12-30","2022-09-30","53.570,00                   4870,00 mensal","1º ADITIVO TEMPO "]
["TP 005/2021",null,"Software da contabilidade","ADM","ASP AUTOM. SERV. E PROD. DE INFORM. LTDA","09 MESES","070/2021","2021-04-05","2022-09-30","2023-06-30","53.570,00                   4870,00 mensal","2º ADITIVO TEMPO "]
["TP 005/2021",null,"Software da contabilidade","ADM","ASP AUTOM. SERV. E PROD. DE INFORM. LTDA","12 MESES","070/2021","2021-04-05","2023-06-30","2024-06-30","53.570,00                   4870,00 mensal","3º ADITIVO TEMPO"]
["TP 005/2021",null,"Software da contabilidade","ADM","ASP AUTOMAÇÃO SERV. E PROD. DE INFORM. LTDA","12 MESES","070/2021","2021-04-05","2024-06-28","2025-06-28","53.570,00                   4870,00 mensal","4º ADITIVO TEMPO "]
["TP 002/2021",null,"Assessoria em contabilidade","ADM","GARRETO CONSULTORES ASSOCIADOS LTDA","288 dias","043/2021","2021-03-18","2021-12-30","2022-10-17","180.000,00               15.000,00 mensal ","1º ADITIVO TEMPO "]
["TP 002/2021",null,"Assessoria em contabilidade","EDUC","GARRETO CONSULTORES ASSOCIADOS LTDA","288 dias","050/2021","2021-03-18","2021-12-30","2022-10-17","180.000,00               15.000,00 mensal ","1º ADITIVO TEMPO "]
["TP 002/2021",null,"Assessoria em contabilidade","SAÚDE","GARRETO CONSULTORES ASSOCIADOS LTDA","288 dias","051/2023","2021-03-18","2021-12-30","2022-10-17","180.000,00 15.000,00 mensal ","1º ADITIVO TEMPO "]
["TP 002/2021",null,"Assessoria em contabilidade","ADM","GARRETO CONSULTORES ASSOCIADOS LTDA","288 dias","043/2021","2021-03-18","2022-10-17","2023-08-01","180.000,00               15.000,00 mensal ","2º ADITIVO TEMPO "]
["TP 002/2021",null,"Assessoria em contabilidade","EDUC","GARRETO CONSULTORES ASSOCIADOS LTDA","288 dias","050/2021","2021-03-18","2022-10-17","2023-08-01","180.000,00 15.000,00 mensal ","2º ADITIVO TEMPO "]
["TP 002/2021",null,"Assessoria em contabilidade","SAÚDE","GARRETO CONSULTORES ASSOCIADOS LTDA","288 dias","051/2023","2021-03-18","2022-10-17","2023-08-01","180.000,00               15.000,00 mensal ","2º ADITIVO TEMPO "]
["TP 002/2021",null,"Assessoria em contabilidade","ADM","GARRETO CONSULTORES ASSOCIADOS LTDA","12 MESES","043/2021","2021-03-18","2023-08-01","2024-08-01","180.000,00               15.000,00 mensal ","3º ADITIVO TEMPO"]
["TP 002/2021",null,"Assessoria em contabilidade","EDUC","GARRETO CONSULTORES ASSOCIADOS LTDA","12 MESES","050/2021","2021-03-18","2023-08-01","2024-08-01","180.000,00                15.000,00 mensal ","3º ADITIVO TEMPO"]
["TP 002/2021",null,"Assessoria em contabilidade","SAÚDE","GARRETO CONSULTORES ASSOCIADOS LTDA","12 MESES","051/2023","2021-03-18","2023-08-01","2024-08-01","180.000,00                   15.000,00 mensal ","3º ADITIVO TEMPO"]
["TP 002/2021",null,"Assessoria em contabilidade","ADM","GARRETO CONSULTORES ASSOCIADOS LTDA","25 PORCENTO","051/2023","2021-03-18","VALOR","VALOR",18000,"4º ADITIVO DE VALOR"]
["TP 002/2021",null,"Assessoria em contabilidade","EDUC","GARRETO CONSULTORES ASSOCIADOS LTDA","25 PORCENTO","051/2023","2021-03-18","VALOR","VALOR",18000,"4º ADITIVO DE VALOR"]
["TP 002/2021",null,"Assessoria em contabilidade","SAÚDE","GARRETO CONSULTORES ASSOCIADOS LTDA","25 PORCENTO","051/2023","2021-03-18","VALOR","VALOR",18000,"4º ADITIVO DE VALOR"]
["TP 002/2021",null,"Assessoria em contabilidade","ADM","GARRETO CONSULTORES ASSOCIADOS LTDA","12 MESES","043/2021","2021-03-18","2024-08-01","2025-08-01",18000,"5º ADITIVO TEMPO"]
["TP 002/2021",null,"Assessoria em contabilidade","EDUC","GARRETO CONSULTORES ASSOCIADOS LTDA","12 MESES","050/2021","2021-03-18","2024-08-01","2025-08-01",18000,"5º ADITIVO TEMPO"]
["TP 002/2021",null,"Assessoria em contabilidade","SAÚDE","GARRETO CONSULTORES ASSOCIADOS LTDA","12 MESES","051/2023","2021-03-18","2024-08-01","2025-08-01",18000,"5º ADITIVO TEMPO"]
["PE 02/2022",null,"Assessoria da Assistência Social","ASSIST","ANDREA KARLA TABOSA FIGUEIREDO","12 MESES","118/2022","2022-07-28","2023-07-28","2024-07-28","122.400,00               10.200,00 MENSAL","1º ADITIVO TEMPO "]
["PE 02/2022",null,"Assessoria da Assistência Social","ASSIST","ANDREA KARLA TABOSA FIGUEIREDO","12 MESES","118/2022","2022-07-28","2024-07-26","2025-07-26","122.400,00                   10.200,00 MENSAL","2º ADITIVO TEMPO "]
["TP 001/2021",null,"Assessoria da Saúde","SAÚDE","A. CARVALHO DE SOUSA ME","12 MESES","46/2021","2021-04-01","30/12/201","2022-09-30","84.700,00                    7.700,00 mensal","1º ADITIVO TEMPO "]
["TP 001/2021",null,"Assessoria da Saúde","SAÚDE","A. CARVALHO DE SOUSA ME","15 PORCENTO","46/2021","2021-04-01","VALOR","VALOR","97.405,00                  8.855,00 MENSAL","2º ADITIVO VALOR"]
["TP 001/2021",null,"Assessoria da Saúde","SAÚDE","A. CARVALHO DE SOUSA ME","12 MESES","46/2021","2021-04-01","2022-09-30","2023-09-30","97.405,00                  8.855,00 MENSAL","3º ADITIVO TEMPO"]
["TP 001/2021",null,"Assessoria da Saúde","SAÚDE","A. CARVALHO DE SOUSA ME","12 MESES","46/2021","2021-04-01","2023-09-29","2024-09-29","97.405,00                       8.855,00 MENSAL","4º ADITIVO TEMPO "]
["TP 001/2021",null,"Assessoria da Saúde","SAÚDE","A. CARVALHO DE SOUSA ME","12 MESES","46/2021","2021-04-01","2024-09-27","2025-09-27","97.405,00                  8.855,00 MENSAL","5º ADITIVO TEMPO "]
["TP 02/2023",null,"Assessoria em Engenharia","ADM","METRO2 ENGENHARIA LTDA","12 MESES","249/2023","2023-10-19","2024-10-14","2025-10-14","84.000,00                  7.000,00 MENSAL","1º ADITIVO TEMPO "]
["TP 02/2023",null,"Assessoria em Engenharia","EDUC","METRO2 ENGENHARIA LTDA","12 MESES","249/2023","2023-10-19","2024-10-14","2025-10-14","114.000,00 9.500,00 MENSAL","1º ADITIVO TEMPO "]
["TP 02/2023",null,"Assessoria em Engenharia","SAÚDE","METRO2 ENGENHARIA LTDA","12 MESES","249/2023","2023-10-19","2024-10-14","2025-10-14","48.000,00                  4.000,00 MENSAL","1º ADITIVO TEMPO "]
["PE 07/2022",null,"locação de veiculos e maquinas pesadas","ADM","LTS EMPREENDIMENTOS EIRELI EPP","12 MESES","074/2022","2022-05-13","12.05.2023","13.05.2024",340997.6,"1º ADITIVO TEMPO"]
["PE 07/2022",null,"locação de veiculos e maquinas pesadas","EDUC","LTS EMPREENDIMENTOS EIRELI EPP","12 MESES","75/2022","2022-05-13","12.05.2023","13.05.2024",736940.4,"1º ADITIVO TEMPO"]
["PE 07/2022",null,"locação de veiculos e maquinas pesadas","SAÚDE","LTS EMPREENDIMENTOS EIRELI EPP","12 MESES","76/2022","2022-05-13","12.05.2023","13.05.2024",713534.4,"1º ADITIVO TEMPO"]
["PE 07/2022",null,"locação de veiculos e maquinas pesadas","ASSIST","LTS EMPREENDIMENTOS EIRELI EPP","12 MESES","77/2022","2022-05-13","12.05.2023","13.05.2024",156211.20000000001,"1º ADITIVO TEMPO"]
["PE 07/2022",null,"locação de veiculos e maquinas pesadas","ADM","LTS EMPREENDIMENTOS EIRELI EPP","12 MESES","074/2022","2022-05-13","13.05.2024","13.05.2025",340997.6,"2º ADITIVO TEMPO "]
["PE 07/2022",null,"locação de veiculos e maquinas pesadas","EDUC","LTS EMPREENDIMENTOS EIRELI EPP","12 MESES","75/2022","2022-05-13","13.05.2024","13.05.2025",736940.4,"2º ADITIVO TEMPO "]
["PE 07/2022",null,"locação de veiculos e maquinas pesadas","SAÚDE","LTS EMPREENDIMENTOS EIRELI EPP","12 MESES","76/2022","2022-05-13","13.05.2024","13.05.2025",713534.4,"2º ADITIVO TEMPO "]
["PE 07/2022",null,"locação de veiculos e maquinas pesadas","ASSIST","LTS EMPREENDIMENTOS EIRELI EPP","12 MESES","77/2022","2022-05-13","13.05.2024","13.05.2025",156211.20000000001,"2º ADITIVO TEMPO "]
["PE 02/2023",null,"HORAS MAQUINAS","ADM","TFW EMPREENDIMENTOS E SERVIÇOS LTDA","12 MESES","128/2023","2023-03-22","2023-12-25","2024-12-25",2191503.2400000002,"1º ADITIVO TEMPO"]
["PP 06/2021",null,"INTERNET","ADM","C V V DA COSTA EIRELI ME","12 MESES","008/2022","2021-03-29","2022-12-30","2023-12-30",25042.5,"2º ADITIVO VALOR"]
["PP 06/2021",null,"INTERNET","EDUC","C V V DA COSTA EIRELI ME","12 MESES","009/2022","2021-03-29","2022-12-30","2023-12-30",33390,"2º ADITIVO VALOR"]
["PP 06/2021",null,"INTERNET","SAÚDE","C V V DA COSTA EIRELI ME","12 MESES","010/2022","2021-03-29","2022-12-30","2023-12-30",12521.25,"2º ADITIVO VALOR"]
["PP 06/2021",null,"INTERNET","ASSIST","C V V DA COSTA EIRELI ME","12 MESES","011/2022","2021-03-29","2022-12-30","2023-12-30",12521.25,"2º ADITIVO VALOR"]
["PP 06/2021",null,"INTERNET","ADM","C V V DA COSTA EIRELI ME","12 MESES","009/2022","2021-03-29","2023-12-22","2024-12-22",25042.5,"3º ADITIVO TEMPO"]
["PP 06/2021",null,"INTERNET","EDUC","C V V DA COSTA EIRELI ME","12 MESES","010/2022","2021-03-29","2023-12-22","2024-12-22",33390,"3º ADITIVO TEMPO"]
["PP 06/2021",null,"INTERNET","SAÚDE","C V V DA COSTA EIRELI ME","12 MESES","011/2022","2021-03-29","2023-12-22","2024-12-22",12521.25,"3º ADITIVO TEMPO"]
["PP 06/2021",null,"INTERNET","ASSIST","C V V DA COSTA EIRELI ME","12 MESES","012/2022","2021-03-29","2023-12-22","2024-12-22",12521.25,"3º ADITIVO TEMPO"]
["PE 02/2021",null,"Limpeza Pública","ADM","AGECOM EMPREENDIMENTOS E CONSTRUÇOES LTDA","10 MESES","28/2021","2021-03-01","2021-12-30","2022-10-31","1.517.765,37          126.480,45 MESAL","1º ADITIVO TEMPO "]
["PE 02/2021",null,"Limpeza Pública","ADM","AGECOM EMPREENDIMENTOS E CONSTRUÇOES LTDA","21 PORCENTO","28/2021","2021-03-01","VALOR","VALOR","1.897.206,70               158.100,60 MESAL","2º ADITIVO VALOR"]
["PE 02/2021",null,"Limpeza Pública","ADM","AGECOM EMPREENDIMENTOS E CONSTRUÇOES LTDA","10 MESES","28/2021","2021-03-01","2022-10-31","2023-08-31","1.897.206,70              158.100,60 MESAL","3º ADITIVO VALOR"]
["PE 02/2021",null,"Limpeza Pública","ADM","AGECOM EMPREENDIMENTOS E CONSTRUÇOES LTDA","10 MESES","28/2021","2021-03-01","2024-08-30","31/04/2025","1.897.206,70          158.100,60 MESAL","4º ADITIVO TEMPO "]
["PE 12/2023",null,"ROÇO E CAPINA","ADM","COMERCIO E SERVIÇOS BOMFIM LTDA","12 MESES","189/2023","2023-05-23","2023-12-25","2024-12-25",833542.34,"1º ADITIVO TEMPO"]
["PE 12/2023",null,"ROÇO E CAPINA","EDUC","COMERCIO E SERVIÇOS BOMFIM LTDA","12 MESES","190/2023","2023-05-23","2023-12-25","2024-12-25",833542.34,"1º ADITIVO TEMPO"]
["PE 12/2023",null,"ROÇO E CAPINA","SAÚDE","COMERCIO E SERVIÇOS BOMFIM LTDA","12 MESES","195/2023","2023-05-23","2023-12-25","2024-12-25",833542.34,"1º ADITIVO TEMPO"]
["PE 12/2023",null,"ROÇO E CAPINA","ASSIST","COMERCIO E SERVIÇOS BOMFIM LTDA","12 MESES","196/2023","2023-05-23","2023-12-25","2024-12-25",833542.34,"1º ADITIVO TEMPO"]